Cogmind - Beta 14 @@@ ROGUE MODE // 2024.10.26 @ 19:41:23 Player: Some Pennies Result: Destroyed by G-73 Enforcer with Phase Gun Performance ------------- Evolutions (9) 4500 Regions Visited (34) 6800 Robots Destroyed (371) 1855 Value Destroyed (14781) 14781 Prototype IDs (108) 2160 Alien Tech Used (15) 3000 Bonus (11076) 11076 TOTAL SCORE: 44172 Bonus ------- Follower Combat Kills 176 Met Data Miner 300 Met Imprinter 300 Destroyed Z-Imprinter 1000 Triggered Deep Caves Wall 500 Exposed GOLEM Chamber 500 Met Zhirov 300 Met Warlord at Base 500 MAIN.C Attacked Warlord 500 Used Core Reset Matrix 3000 Met Warlord at Research 2000 Met Sigix 2000 Cogmind --------- Core Integrity 0/1600 Matter 235/300 Energy 99/100 System Corruption 0% Temperature Cool (18) Movement Core (50) Location -1/Access Parts ------- > --- POWER (2) -------- (None) > --- PROPULSION (6) --- Assembled Alloy Leg > --- UTILITY (16) ----- Spectral Analyzer Advanced Melee Analysis Suite Improved System Shield Improved System Shield Advanced System Shield > --- WEAPON (2) ------- (None) > --- INVENTORY (5) ---- Stasis Canceller Sigix Containment Pod Sigix Containment Pod Peak State ------------ > --- POWER ------------ Assembled Flux Generator > --- PROPULSION ------- Improved Antigrav System Improved Antigrav System Improved Antigrav System Improved Antigrav System Improved Antigrav System Improved Antigrav System > --- UTILITY ---------- Assembled Nanovents Assembled Nanovents Large Storage Unit Assembled Biocell Array Assembled Suspension Frame Spectral Analyzer Assembled Combat Suite Assembled Alloy Armor Improved Hacking Suite Improved Hacking Suite Experimental Hacking Suite Improved System Shield Improved System Shield Advanced System Shield GOLEM Unit > --- WEAPON ----------- Sigix Broadsword > --- INVENTORY -------- Micro Antimatter Reactor Gravmag System Experimental Coolant Injector Experimental Energy Well Stasis Canceller Experimental Transmission Jammer High-powered Transdimensional Reconstructor Subatomic Replicator Cooled Nova Cannon Improved Potential Cannon Compact Tesla Bomb Launcher Tiamat Missile Launcher Sigix Containment Pod [Rating: 216] Favorites ----------- Power Assembled Flux Generator Engine Heavy Ion Engine Reactor Assembled Flux Generator Propulsion Assembled Alloy Leg Treads Light Treads Leg Assembled Alloy Leg Hover Unit Improved Antigrav System Flight Unit Impulse Thruster Array Utility Huge Storage Unit Device GOLEM Unit Storage Huge Storage Unit Processor Spectral Analyzer Hackware Improved Hacking Suite Protection Assembled Alloy Armor Artifact Core Physics Calibrator Weapon Assembled Focal Cannon Energy Gun Improved Medium Laser Energy Cannon Assembled Focal Cannon Ballistic Gun Enhanced Autogun Launcher Missile Launcher Special Weapon Plasma Cutter Impact Weapon Powered Hammer Slashing Weapon Sigix Broadsword Special Melee Weapon Advanced Datajack Build | -11 -10 -10 -9 -9 -9 -8 -8 -7 -7 -7 -7 -7 -6 -6 -6 -6 -6 -5 -5 -5 -5 -5 -4 -4 -4 -4 -4 -3 -3 -3 -2 -2 -2 -1 ------- Run | Yrd Mat Min Mat Min Exi Min Mat Fac Low Low Zio Dee Pro Fac Low Low Dat Pro Fac Upp Upp War Pro Fac Upp Upp Zhi Pro Res Tes Res Qua Sec Acc Slots Evolved 18 | . . . 2 . . . 2 2 . . . . . 2 . . . . 2 . . . . 2 . . . . 2 . 2 . . 2 Power 1 | . . . . . . . . 1 . . . . . . . . . . . . . . . . . . . . . . . . . . Propulsion 4 | . . . . . . . . . . . . . . . . . . . . . . . . . . . . . . . 2 . . 2 Utility 13 | . . . 2 . . . 2 1 . . . . . 2 . . . . 1 . . . . 2 . . . . 2 . . . . 1 Weapon . | . . . . . . . . . . . . . . . . . . . 1 . . . . . . . . . . . . . . -1 Parts Attached 460 | 8 10 3 31 2 4 8 52 20 9 4 21 58 . 14 1 . . . 5 6 . 7 5 28 2 . 2 1 4 45 27 33 17 33 Power 26 | 2 1 . 2 . . . 3 2 . 1 1 3 . . . . . . . . . 1 . 1 . . . . . . 3 3 . 3 Engine 13 | 2 1 . 2 . . . 3 2 . 1 1 1 . . . . . . . . . . . . . . . . . . . . . . Core . | . . . . . . . . . . . . . . . . . . . . . . . . . . . . . . . . . . . Reactor 13 | . . . . . . . . . . . . 2 . . . . . . . . . 1 . 1 . . . . . . 3 3 . 3 Propulsion 54 | 2 3 3 4 . . 2 10 2 1 . . 6 . . . . . . . . . . . . . . . . 1 3 3 1 . 13 Treads 29 | 2 3 3 4 . . 2 10 2 1 . . 2 . . . . . . . . . . . . . . . . . . . . . . Leg 4 | . . . . . . . . . . . . 4 . . . . . . . . . . . . . . . . . . . . . . Wheel . | . . . . . . . . . . . . . . . . . . . . . . . . . . . . . . . . . . . Hover 10 | . . . . . . . . . . . . . . . . . . . . . . . . . . . . . . . . . . 10 Flight 11 | . . . . . . . . . . . . . . . . . . . . . . . . . . . . . 1 3 3 1 . 3 Utility 254 | 2 4 . 10 . . 3 22 11 6 2 13 38 . 14 1 . . . 5 6 . 4 5 25 2 . 2 1 3 24 17 13 9 12 Device 99 | 1 2 . 1 . . 3 12 2 3 . 3 8 . 3 1 . . . 2 4 . 4 3 12 2 . . 1 3 9 5 7 2 6 Storage 27 | 1 2 . 3 . . . 1 . . . . 3 . 1 . . . . 1 . . . . 1 . . . . . 10 2 . . 2 Processor 18 | . . . . . . . 3 1 . . 5 . . . . . . . . . . . . 2 . . . . . 2 2 1 . 2 Hackware 27 | . . . . . . . . 2 . . . . . 5 . . . . 1 . . . . 7 . . 1 . . 2 4 . 3 2 Protection 81 | . . . 6 . . . 6 6 3 2 5 27 . 5 . . . . 1 2 . . 2 3 . . 1 . . 1 4 4 3 . Artifact 2 | . . . . . . . . . . . . . . . . . . . . . . . . . . . . . . . . 1 1 . Weapon 126 | 2 2 . 15 2 4 3 17 5 2 1 7 11 . . . . . . . . . 2 . 2 . . . . . 18 4 16 8 5 Energy Gun 38 | . 1 . 12 2 3 1 6 . . . 2 1 . . . . . . . . . 1 . . . . . . . 8 1 . . . Energy Cannon 37 | . 1 . . . . . . 1 1 . 2 7 . . . . . . . . . 1 . 2 . . . . . 8 1 9 2 2 Ballistic Gun 16 | 2 . . 1 . 1 1 8 2 . 1 . . . . . . . . . . . . . . . . . . . . . . . . Ballistic Cannon . | . . . . . . . . . . . . . . . . . . . . . . . . . . . . . . . . . . . Launcher 10 | . . . 2 . . . 1 . . . . 2 . . . . . . . . . . . . . . . . . 1 1 2 . 1 Special Weapon 1 | . . . . . . . . . . . 1 . . . . . . . . . . . . . . . . . . . . . . . Impact Weapon 8 | . . . . . . 1 1 2 1 . . 1 . . . . . . . . . . . . . . . . . . . 2 . . Slashing Weapon 10 | . . . . . . . . . . . . . . . . . . . . . . . . . . . . . . 1 1 1 5 2 Piercing Weapon . | . . . . . . . . . . . . . . . . . . . . . . . . . . . . . . . . . . . Special Melee Weapon 6 | . . . . . . . 1 . . . 2 . . . . . . . . . . . . . . . . . . . . 2 1 . Unidentified Prototypes 57 | . . . 4 . 1 . 2 . 1 . 5 9 . . 1 . . . . . . 5 . 2 . . 2 . . 13 5 6 . 1 Parts Lost 87 | . 4 . 3 . . 2 8 2 . 3 . 8 1 1 . . . . . 2 . . 2 15 1 1 . 1 . . 4 . 4 25 Power 3 | . . . . . . . . 1 . 1 . . . . . . . . . . . . . 1 . . . . . . . . . . Propulsion 15 | . . . . . . . 2 . . . . . . . . . . . . . . . . . . . . . . . 1 . . 12 Utility 58 | . 2 . 2 . . 2 5 1 . 1 . 8 1 1 . . . . . 2 . . 2 11 1 1 . 1 . . 2 . 3 12 Weapon 11 | . 2 . 1 . . . 1 . . 1 . . . . . . . . . . . . . 3 . . . . . . 1 . 1 1 Highest Loss Streak 15 | . 2 . 1 . . 1 2 2 . 3 . 5 1 1 . . . . . 2 . . 2 15 1 1 . 1 . . 3 . 4 13 To Critical Strikes . | . . . . . . . . . . . . . . . . . . . . . . . . . . . . . . . . . . . Average Slot Usage (%) 87 | . 97 28 94 100 99 98 98 98 99 94 96 85 85 84 81 81 81 81 83 81 83 80 82 88 84 87 79 90 82 72 73 75 74 58 Engine 4 | . 14 . 10 11 11 11 9 14 14 8 13 1 . . . . . . . . . . . . . . . . . . . . . . Reactor 3 | . . . . . . . . . . . . 8 7 5 6 6 6 6 5 5 5 4 5 4 5 5 5 5 2 . 2 2 3 1 Treads 7 | . 28 28 22 22 22 22 18 15 14 14 14 4 . . . . . . . . . . . . . . . . . . . . . . Leg 5 | . . . . . . . . . . . . 9 14 12 12 12 12 12 11 10 11 11 10 10 9 10 10 10 6 . . . . 2 Device 18 | . 11 . 7 11 11 16 25 28 28 27 4 12 9 18 18 18 18 18 16 22 22 22 21 24 23 29 31 30 34 22 19 23 24 12 Storage 9 | . 14 . 10 11 11 11 9 7 7 7 7 9 14 11 12 12 12 12 11 11 11 11 11 10 5 7 10 10 9 13 8 8 8 4 Processor 6 | . . . . . . . 9 1 7 7 23 14 7 6 6 6 6 6 5 5 5 5 5 5 10 5 . . . 4 6 4 4 3 Hackware 2 | . . . . . . . . . . . . . . 4 . . . . 4 . . . . 11 15 6 3 5 . 6 12 13 14 18 Protection 12 | . . . 20 22 22 14 7 14 9 14 20 13 18 10 12 12 12 12 11 10 11 11 10 8 4 9 15 15 17 13 8 6 3 . Energy Gun 2 | . 5 . 15 11 10 10 2 . . . 1 1 . . . . . . . . . . . . . . . . . 2 2 . . . Energy Cannon 7 | . 9 . . . . . . 2 6 7 3 8 14 12 12 12 12 12 16 14 16 13 16 14 12 14 5 15 10 . . . . . Ballistic Gun 3 | . 13 . 6 11 10 10 15 11 7 7 5 . . . . . . . . . . . . . . . . . . . . . . . Peak Build Rating 216 | 9 11 11 22 22 31 29 39 48 53 53 76 129 125 149 136 136 136 136 151 157 150 152 160 177 175 179 177 177 198 158 178 215 197 216 Average Rating 101 | 6 9 3 19 20 23 27 34 45 49 49 65 100 122 133 135 135 136 135 149 147 149 146 151 161 164 171 158 176 182 136 159 182 188 148 On Entrance 103 | . 9 11 2 20 22 25 29 37 48 53 50 76 121 125 136 136 136 136 136 151 149 149 152 150 94 171 178 177 175 148 140 128 192 149 Naked Turns . | . . . . . . . . . . . . . . . . . . . . . . . . . . . . . . . . . . . Heaviest Build 223 | 15 90 . 112 106 107 110 118 146 144 139 131 173 167 199 199 199 199 199 215 214 214 214 218 223 100 109 108 119 126 50 53 95 49 81 Greatest Support 92 | 40 40 3 40 40 40 40 43 46 46 43 43 60 60 80 60 60 60 60 60 60 60 60 60 80 60 80 80 80 80 36 52 52 52 92 Greatest Overweight (x) 7 | . 2 . 2 2 2 2 2 3 3 3 3 4 2 3 3 3 3 3 3 7 3 3 3 3 1 1 1 1 1 1 1 2 2 3 Average Overweight (x) 1 | . . . 1 2 2 2 2 2 2 2 2 1 2 2 3 3 3 3 3 3 3 2 3 1 . 1 . 1 . . . . . . Largest Inventory Capacity 25 | 8 25 15 25 25 25 25 25 25 25 25 25 25 25 25 25 25 25 25 25 25 25 25 25 25 5 5 5 5 5 10 15 15 15 15 Average Capacity 21 | 7 14 6 23 25 25 25 25 25 25 25 25 20 25 24 25 25 25 25 25 25 25 25 25 24 5 5 5 5 5 8 13 15 15 13 Most Carried 25 | 4 15 15 25 25 25 25 25 25 25 25 25 25 25 25 25 25 25 25 25 25 25 25 25 25 5 4 5 5 5 10 15 15 15 15 Average Carried 20 | 2 11 5 20 24 24 24 24 24 24 24 24 18 25 23 25 24 25 24 24 24 24 24 23 24 4 4 4 5 5 8 12 14 14 11 Final Capacity 25 | 8 15 5 25 25 25 25 25 25 25 25 25 25 25 25 25 25 25 25 25 25 25 25 25 5 5 5 5 5 5 10 15 15 15 5 Final Carried 25 | 4 15 5 25 25 25 24 25 25 24 24 24 25 25 25 25 25 25 25 25 24 25 25 23 5 4 4 5 5 5 10 15 15 15 5 Class Distribution -------------------- 38% | Golem 27% | Mutant 16% | Scavenger-Mutant 9% | Hacker-Golem 6% | Hacker-Mutant Dominant Class ---------------- Mutant | -10/Materials Mutant | -10/Mines Mutant | -9/Materials Scavenger-Mutant | -9/Mines Scavenger-Mutant | -9/Exiles Scavenger-Mutant | -8/Mines Mutant | -8/Materials Mutant | -7/Factory Mutant | -7/Lower Caves Mutant | -7/Lower Caves Mutant | -7/Zion Golem | -7/Deep Caves Golem | -6/Proximity Caves Golem | -6/Factory Golem | -6/Lower Caves Golem | -6/Lower Caves Golem | -6/Data Miner Golem | -5/Proximity Caves Golem | -5/Factory Golem | -5/Upper Caves Golem | -5/Upper Caves Golem | -5/Warlord Golem | -4/Proximity Caves Hacker-Golem | -4/Factory Hacker-Golem | -4/Upper Caves Golem | -4/Upper Caves Golem | -4/Zhirov Golem | -3/Proximity Caves Golem | -3/Research Hacker-Mutant | -3/Testing Hacker-Mutant | -2/Research Hacker-Mutant | -2/Quarantine Hacker-Mutant | -2/Section 7 Wizard-Mutant | -1/Access Resources | -11 -10 -10 -9 -9 -9 -8 -8 -7 -7 -7 -7 -7 -6 -6 -6 -6 -6 -5 -5 -5 -5 -5 -4 -4 -4 -4 -4 -3 -3 -3 -2 -2 -2 -1 ----------- Run | Yrd Mat Min Mat Min Exi Min Mat Fac Low Low Zio Dee Pro Fac Low Low Dat Pro Fac Upp Upp War Pro Fac Upp Upp Zhi Pro Res Tes Res Qua Sec Acc Matter Collected 7634 | 296 414 . 541 90 81 158 1226 489 87 140 . 1235 . 140 . 270 . . 50 58 7 70 50 257 197 77 86 23 . 345 403 337 26 481 Remotely . | . . . . . . . . . . . . . . . . . . . . . . . . . . . . . . . . . . . Salvage Created 22159 | 81 669 . 1219 . 104 368 2342 777 80 285 . 2995 240 1526 196 200 . 1036 1009 1137 560 . 1101 1469 357 503 169 613 113 345 501 1141 23 1000 Parts 989 | 7 28 . 74 . 4 9 135 34 3 10 . 63 10 67 6 15 . 50 37 34 23 . 51 89 15 20 3 35 1 23 19 58 3 63 Haulers Intercepted 21 | . 1 . 5 . . . 5 . . . . . . 1 . . . . 2 . . . . 2 . . . . . . 4 1 . . Recyclers Shooed 11 | . 3 . 1 . . . 5 . . . . . . . . . . . 2 . . . . . . . . . . . . . . . Parts Field Recycled . | . . . . . . . . . . . . . . . . . . . . . . . . . . . . . . . . . . . Retrieved Matter . | . . . . . . . . . . . . . . . . . . . . . . . . . . . . . . . . . . . Parts Self-Destructed 272 | . . . . . . . . . 3 10 . . 10 . 6 15 . 49 . 38 22 . 51 . 15 20 3 30 . . . . . . Prevented 4 | . . . . . . . . . . . . . . . 4 . . . . . . . . . . . . . . . . . . . Kills | -11 -10 -10 -9 -9 -9 -8 -8 -7 -7 -7 -7 -7 -6 -6 -6 -6 -6 -5 -5 -5 -5 -5 -4 -4 -4 -4 -4 -3 -3 -3 -2 -2 -2 -1 ------- Run | Yrd Mat Min Mat Min Exi Min Mat Fac Low Low Zio Dee Pro Fac Low Low Dat Pro Fac Upp Upp War Pro Fac Upp Upp Zhi Pro Res Tes Res Qua Sec Acc Combat Hostiles Destroyed 322 | . 16 . 28 . . 7 27 10 2 5 . 66 7 16 1 5 . 20 9 18 11 . 22 16 5 6 . 9 . 3 . 4 . 9 Melee 11 | . . . . . . 2 . . . . . 2 . . . . . . . . . . . . . . . . . . . 3 . 4 Guns 81 | . 11 . 17 . . 4 26 6 1 4 . 11 . . . . . . . . . . . . . . . . . 1 . . . . Cannons 168 | . 5 . . . . . . 3 1 1 . 9 7 16 1 5 . 20 9 18 11 . 22 16 5 6 . 9 . 2 . 1 . 1 AOE 51 | . . . 10 . . . 1 . . . . 36 . . . . . . . . . . . . . . . . . . . . . 4 Classes Destroyed 24 | 2 6 . 3 . . 1 1 1 . . . 4 . 2 2 . . . . . . . . . . 1 . 1 . . . . . . Worker 10 | . 1 . 1 . . . 1 . . . . . . 2 . . . . . . . . . 1 . . . . . . . 1 . 3 Builder 16 | . 1 . . . . . 5 1 . . . . . 2 . . . . . . . . . 4 . . . . . 1 . 2 . . Tunneler 3 | 1 . . . . . . . . . . . . . . . . . . . . . . . 1 . . . . . . . . . 1 Hauler 21 | . 1 . 5 . . . 5 . . . . . . 1 . . . . 2 . . . . 2 . . . . . . 4 1 . . Recycler 27 | 1 1 . 1 . . . 6 3 . . . . . 3 . . . . 1 . . . . 1 . . . . 1 1 . 5 . 3 Minesweeper 2 | . . . . . . . . . . . . . . . 2 . . . . . . . . . . . . . . . . . . . Mechanic 1 | . . . . . . . . . . . . . . 1 . . . . . . . . . . . . . . . . . . . . Operator 12 | . 1 . 1 . . . 2 . . . . . . 1 . . . . 2 . . . . . . . . . . . 2 1 1 1 Drone 1 | . . . . . . . . . . . . . . . . . . . . . . . . . . . . 1 . . . . . . Watcher 8 | . . . 1 . . . 5 1 . . . . . 1 . . . . . . . . . . . . . . . . . . . . Swarmer 60 | . 6 . 11 . . . 3 . . . . . 5 3 . 3 . 7 . 2 5 . 11 . . . . . . . . . . 4 Grunt 101 | . 10 . 8 . . 4 15 2 . 3 . . 1 8 . . . 7 7 11 4 . 8 4 4 . . 5 . . . . . . Brawler 8 | . . . 2 . . 2 . . . . . . . . . . . 1 . 3 . . . . . . . . . . . . . . Duelist 3 | . . . . . . . 1 . . 1 . . . . . . . . . 1 . . . . . . . . . . . . . . Sentry 32 | . . . 7 . . . 7 2 . 1 . . 1 1 1 . . 2 2 1 1 . 3 1 1 1 . . . . . . . . Hunter 18 | . . . . . . 1 1 . 1 . . . . 2 . 2 . 3 . . . . . 2 . 4 . 2 . . . . . . Programmer 31 | . . . . . . . . 6 1 . . . . 1 . . . . . . 1 . . 9 . . . 1 . 3 . 4 . 5 Heavy 1 | . . . . . . . . . . . . . . 1 . . . . . . . . . . . . . . . . . . . . Behemoth 1 | . . . . . . . . . . . . . . . . . . . . . . . . . . 1 . . . . . . . . Z-Technician 2 | . . . . . . . . . . . . 2 . . . . . . . . . . . . . . . . . . . . . . Z-Light 10 | . . . . . . . . . . . . 10 . . . . . . . . . . . . . . . . . . . . . . Samaritan 3 | . . . . . . . . . . . . . . . 1 . . . . . 1 . . . . . . 1 . . . . . . Assembler 2 | . . . . . . . . . . . . 2 . . . . . . . . . . . . . . . . . . . . . . Assembled 36 | . . . . . . . . . . . . 36 . . . . . . . . . . . . . . . . . . . . . . Golem 19 | . . . . . . . . . . . . 19 . . . . . . . . . . . . . . . . . . . . . . Best Kill Streak 38 | 2 7 . 8 . . 3 5 4 1 4 . 38 4 5 1 3 . 7 5 7 5 . 5 4 4 2 . 5 1 3 2 6 1 4 Combat Bots Only 36 | . 5 . 7 . . 5 4 3 1 4 . 36 4 4 1 3 . 7 5 7 5 . 5 3 4 2 . 5 . 3 . 2 . 4 Max Kills in Single Turn 15 | 1 1 . 3 . . 1 2 1 1 1 . 15 1 2 1 1 . 1 1 2 2 . 1 1 1 1 . 1 1 1 1 2 1 2 Gunslinging 1 | . . . 1 . . . 1 . . . . . . . . . . . . . . . . . . . . . . . . . . . Exploded 15 | . . . 3 . . . 1 . . . . 15 . . . . . . . . . . . . . . . . . . . . . 2 Melee 1 | . . . . . . 1 . . . . . 1 . . . . . . . . . . . . . . . . . . . 1 . 1 Uniques/NPCs Destroyed 1 | . . . . . . . . . . . . 1 . . . . . . . . . . . . . . . . . . . . . . Z-Imprinter (-7/Deep Caves) Combat | -11 -10 -10 -9 -9 -9 -8 -8 -7 -7 -7 -7 -7 -6 -6 -6 -6 -6 -5 -5 -5 -5 -5 -4 -4 -4 -4 -4 -3 -3 -3 -2 -2 -2 -1 -------- Run | Yrd Mat Min Mat Min Exi Min Mat Fac Low Low Zio Dee Pro Fac Low Low Dat Pro Fac Upp Upp War Pro Fac Upp Upp Zhi Pro Res Tes Res Qua Sec Acc Hostile Shots Fired 2778 | . 121 13 112 . . 37 157 165 16 43 . 182 65 59 45 16 . 52 46 60 17 . 247 583 28 62 . 34 4 73 57 64 131 289 Missed 1117 | . 39 4 36 . . 8 43 68 5 14 . 52 30 22 20 6 . 24 18 28 6 . 91 227 11 15 . 20 2 43 38 37 87 123 Damage Taken 25121 | . 888 91 1021 . . 446 1870 715 150 397 . 3750 351 645 131 93 . 357 458 370 100 . 1626 3603 224 898 . 226 46 519 447 721 1117 3861 Core 3925 | . 190 26 158 . . 18 308 63 14 66 . 281 10 132 17 18 . 9 . 17 . . 112 437 21 . . . . 198 44 91 307 1388 Absorbed by Shields 755 | . . . . . . 33 17 137 . . . . . . . . . . . 104 39 . 223 192 . . . 10 . . . . . . Redirected to Shielding 571 | . . . . . . . . 81 . 39 . 265 . . . . . . . . . . . . . . . . . 23 24 89 50 . Ignored by Resistances 4784 | . . . . . . . . 28 28 . . 779 75 159 59 70 . 158 134 126 65 . 1123 1133 127 185 . 51 10 108 63 . . 303 Regen/Repaired (Parts) 1459 | . . . . . . . . . . . . . . . . . . . . . . . . 35 . . . . . . . 402 372 650 Core Remaining (%) 63 | 100 . 13 . . . 56 44 . . . . . 38 . . . . 79 . . . . 87 . . . . 60 . 84 . . 69 . Volleys Fired 990 | 15 70 1 97 . 4 17 145 44 10 15 1 123 16 55 12 23 . 44 30 32 14 . 46 64 14 21 5 18 2 21 1 19 6 5 Largest 3 | 2 2 2 2 . 2 2 2 2 2 2 1 2 2 2 2 2 . 2 3 3 3 . 3 3 3 3 1 3 3 2 1 2 1 1 Hottest 194 | 40 100 100 112 . 98 103 124 105 105 105 80 126 50 50 50 50 . 50 75 75 75 . 75 75 75 75 25 75 75 194 50 170 50 50 Shots Fired 2057 | 23 140 2 185 . 8 34 285 88 18 30 1 256 32 101 22 46 . 86 76 94 43 . 101 152 42 62 5 54 6 27 1 26 6 5 Gun 780 | 23 106 1 179 . 8 34 282 60 8 15 . 45 . . . . . . . . . . . . . . . . . 19 . . . . Cannon 1244 | . 34 1 . . . . . 28 10 15 1 191 32 101 22 46 . 86 76 94 43 . 101 152 42 62 5 54 6 8 1 26 6 1 Launcher 33 | . . . 6 . . . 3 . . . . 20 . . . . . . . . . . . . . . . . . . . . . 4 Special . | . . . . . . . . . . . . . . . . . . . . . . . . . . . . . . . . . . . Kinetic 460 | 23 95 . 44 . 4 17 194 60 8 15 . . . . . . . . . . . . . . . . . . . . . . . . Thermal 1506 | . 45 2 135 . 4 17 80 28 10 15 1 186 32 101 22 46 . 86 76 94 43 . 101 152 42 62 5 54 6 27 1 26 6 1 Explosive 26 | . . . 6 . . . . . . . . 20 . . . . . . . . . . . . . . . . . . . . . . Electromagnetic 65 | . . . . . . . 11 . . . . 50 . . . . . . . . . . . . . . . . . . . . . 4 Robot Hit Streak 27 | 5 11 . 15 . 5 16 16 14 8 15 . 27 11 15 9 10 . 14 21 18 15 . 13 19 7 10 8 8 10 11 . 12 . 5 Robot Miss Streak 10 | 6 4 2 10 . 1 4 5 5 1 2 . 4 1 2 1 1 . 1 1 2 2 . 3 3 3 5 . 6 . 3 . 4 . 1 Penetration Max 1 | . . . . . . . 1 . . . . . . . . . . . . . . . . . . . . . . . . . . . Secondary Targets 8 | . 2 . 2 . . 1 3 . . . . . . . . . . . . . . . . . . . . . . . . . . . Max Gunslinging Chain 1 | . 1 . 1 . . 1 1 . . . . . . . . . . . . . . . . . . . . . . . . . . . Autonomous 45 | . . . . . . . . . . . . 45 . . . . . . . . . . . . . . . . . . . . . . Shots Hit Robots 1320 | 11 88 . 113 . 5 34 169 58 11 25 3 206 23 58 13 12 . 61 44 64 24 . 61 71 16 34 5 25 6 17 10 25 1 27 Core Hits 662 | 3 31 . 52 . 2 10 81 26 4 11 . 159 9 28 5 6 . 28 20 26 15 . 31 32 9 12 2 15 2 6 7 14 . 16 Critical Kills 9 | . . . 1 . . . 3 1 . . . 2 . . . . . . . . . . . . . . . . . 2 . . . . Critical Parts Destroyed 11 | . . . . . . 3 3 . . . . 2 . . . . . . . . . . . . . . . . . 3 . . . . Critical Strikes 42 | . . . 14 . . 4 10 1 . . . 4 . . . . . . . . . . . . . . . . . 5 1 1 . 2 Burn 18 | . . . 13 . . 1 4 . . . . . . . . . . . . . . . . . . . . . . . . . . . Meltdown 1 | . . . . . . . . 1 . . . . . . . . . . . . . . . . . . . . . . . . . . Destroy 12 | . . . 1 . . . 6 . . . . . . . . . . . . . . . . . . . . . . 5 . . . . Smash 7 | . . . . . . 3 . . . . . 4 . . . . . . . . . . . . . . . . . . . . . . Sever 4 | . . . . . . . . . . . . . . . . . . . . . . . . . . . . . . . 1 1 . 2 Melee Attacks 146 | . . . . . . 10 1 3 1 . 3 18 . . . . . . . . . . . . . . . . . 9 25 34 12 30 Kinetic 1 | . . . . . . . . . . . . . . . . . . . . . . . . . . . . . . . . 1 . . Impact 33 | . . . . . . 10 1 3 1 . . 18 . . . . . . . . . . . . . . . . . . . . . . Slashing 109 | . . . . . . . . . . . . . . . . . . . . . . . . . . . . . . 9 25 33 12 30 Piercing . | . . . . . . . . . . . . . . . . . . . . . . . . . . . . . . . . . . . Sneak Attacks 20 | . . . . . . . . . . . 3 . . . . . . . . . . . . . . . . . . . 7 3 . 7 Combat Hostiles . | . . . . . . . . . . . . . . . . . . . . . . . . . . . . . . . . . . . Follow-up Attacks . | . . . . . . . . . . . . . . . . . . . . . . . . . . . . . . . . . . . Damage Inflicted 51154 | 137 1366 . 2185 . 93 849 3601 1288 251 539 . 11206 877 2782 558 521 . 2462 1970 3098 1228 . 2686 3429 751 1581 248 1143 245 563 634 2077 141 2645 Guns 8918 | 137 881 . 1660 . 93 434 3347 696 138 204 . 1001 . . . . . . . . . . . . . . . . . 327 . . . . Cannons 31678 | . 384 . . . . . . 592 113 335 . 5943 877 2739 558 521 . 2462 1970 3098 1228 . 2686 3419 751 1581 248 1143 245 236 . 497 . 52 Explosions 4346 | . 82 . 521 . . . 254 . . . . 3290 . . . . . . . . . . . . . . . . . . . . . 199 Melee 6133 | . . . . . . 415 . . . . . 972 . . . . . . . . . . . . . . . . . . 634 1580 141 2391 Ramming 79 | . 19 . 4 . . . . . . . . . . 43 . . . . . . . . . 10 . . . . . . . . . 3 Kinetic 4867 | 137 805 . 411 . 29 141 2306 696 138 204 . . . . . . . . . . . . . . . . . . . . . . . . Thermal 34909 | . 460 . 1249 . 64 293 925 592 113 335 . 6240 877 2739 558 521 . 2462 1970 3098 1228 . 2686 3419 751 1581 248 1143 245 563 . 497 . 52 Explosive 3758 | . 82 . 521 . . . . . . . . 3155 . . . . . . . . . . . . . . . . . . . . . . Electromagnetic 1408 | . . . . . . . 370 . . . . 839 . . . . . . . . . . . . . . . . . . . . . 199 Impact 1387 | . . . . . . 415 . . . . . 972 . . . . . . . . . . . . . . . . . . . . . . Slashing 4746 | . . . . . . . . . . . . . . . . . . . . . . . . . . . . . . . 634 1580 141 2391 Piercing . | . . . . . . . . . . . . . . . . . . . . . . . . . . . . . . . . . . . Highest Corruption 8 | . . . . . . . . 3 3 . . . . . . . . . . 1 1 1 . 8 8 8 8 8 . 4 3 7 5 . Average Corruption 4 | . . . . . . . . 1 1 . . . . . . . . . . 1 1 1 . 3 8 8 8 8 . 3 3 4 5 . Corruption Purged 10 | . . . . . . . . . 3 . . . . . . . . . . . . . . . . . . . . . . 7 . . Corruption Blocked . | . . . . . . . . . . . . . . . . . . . . . . . . . . . . . . . . . . . Effects 195 | . . . . . . . . 9 . . . . . . . . . . . 1 8 . . 34 47 49 9 16 . 3 . 12 7 . Message Errors 41 | . . . . . . . . 3 . . . . . . . . . . . . 4 . . 4 14 8 2 4 . . . 1 1 . Matter Fused 56 | . . . . . . . . 3 . . . . . . . . . . . 1 1 . . 12 13 15 2 1 . 1 . 5 2 . Heat Flow Errors 27 | . . . . . . . . 1 . . . . . . . . . . . . 2 . . 5 5 9 1 3 . 1 . . . . Energy Discharges 27 | . . . . . . . . 2 . . . . . . . . . . . . . . . 3 5 6 2 2 . . . 3 4 . Parts Rejected 1 | . . . . . . . . . . . . . . . . . . . . . . . . 1 . . . . . . . . . . Parts Fused 1 | . . . . . . . . . . . . . . . . . . . . . . . . 1 . . . . . . . . . . Data Loss (minor) 18 | . . . . . . . . . . . . . . . . . . . . . . . . 3 4 6 2 3 . . . . . . Data Loss (major) 12 | . . . . . . . . . . . . . . . . . . . . . . . . 3 3 3 . 2 . . . 1 . . Misfires 5 | . . . . . . . . . . . . . . . . . . . . . 1 . . . 2 1 . . . . . 1 . . Alerts 5 | . . . . . . . . . . . . . . . . . . . . . . . . 2 . 1 . 1 . . . 1 . . Weapon Failures 2 | . . . . . . . . . . . . . . . . . . . . . . . . . 1 . . . . 1 . . . . Overload Shots . | . . . . . . . . . . . . . . . . . . . . . . . . . . . . . . . . . . . Overflow Damage 2706 | . . . . . . 121 . . . . . 416 83 164 18 . . 67 77 127 83 . 93 159 31 56 29 79 44 . 22 489 106 442 Projectiles 1246 | . . . . . . . . . . . . 96 83 164 18 . . 67 77 127 83 . 93 159 31 56 29 79 44 . . 40 . . Explosions 160 | . . . . . . . . . . . . 159 . . . . . . . . . . . . . . . . . . . . . 1 Melee 1300 | . . . . . . 121 . . . . . 161 . . . . . . . . . . . . . . . . . . 22 449 106 441 Knockbacks 13 | . . . . . . 2 . . . . . 11 . . . . . . . . . . . . . . . . . . . . . . Impact 11 | . . . . . . 1 . . . . . 10 . . . . . . . . . . . . . . . . . . . . . . Kinetic . | . . . . . . . . . . . . . . . . . . . . . . . . . . . . . . . . . . . Secondary 2 | . . . . . . 1 . . . . . 1 . . . . . . . . . . . . . . . . . . . . . . Self-Inflicted Damage 520 | . 52 . 85 . . . . . . . . 307 . . . . . . . . . . . . . . . . . . . . . 76 Shots 15 | . 1 . 3 . . . . . . . . 7 . . . . . . . . . . . . . . . . . . . . . 4 Rammed 7 | . 2 . 1 . . . . . . . . . . . . . . . . . . . . . . . . . . . . . . 4 Targets Rammed 12 | . 2 . 1 . . . . . . . . . . 3 . . . . . . . . . 2 . . . . . . . . . 4 Kicked 5 | . . . . . . . . . . . . . . 3 . . . . . . . . . 2 . . . . . . . . . . Crushed . | . . . . . . . . . . . . . . . . . . . . . . . . . . . . . . . . . . . Highest Temperature 444 | . 54 . 278 . 54 270 342 92 36 36 320 444 22 20 15 . . 27 36 46 269 . 110 212 187 181 59 199 . 198 . . . . Average Temperature 69 | . 12 . 80 . 24 79 86 22 20 18 125 124 12 4 7 . . 7 11 16 52 . 25 72 78 94 59 91 . 99 . . . . Received Heat Transfer 5152 | . 330 . 264 . . 207 705 132 . 165 . 570 111 147 54 . . 117 219 155 12 . 472 766 39 36 . 51 18 42 99 . 81 360 Effects 7 | . . . . . . 1 3 . . . . 3 . . . . . . . . . . . . . . . . . . . . . . Energy Bleed 1 | . . . . . . . . . . . . 1 . . . . . . . . . . . . . . . . . . . . . . Interference 4 | . . . . . . 1 3 . . . . . . . . . . . . . . . . . . . . . . . . . . . Short Circuit 1 | . . . . . . . . . . . . 1 . . . . . . . . . . . . . . . . . . . . . . Damage (minor) 1 | . . . . . . . . . . . . 1 . . . . . . . . . . . . . . . . . . . . . . Siege Activations . | . . . . . . . . . . . . . . . . . . . . . . . . . . . . . . . . . . . Robots Corrupted 9 | . . . . . . 1 . . . . . 8 . . . . . . . . . . . . . . . . . . . . . . Combat Hostiles 9 | . . . . . . 1 . . . . . 8 . . . . . . . . . . . . . . . . . . . . . . Parts Fried 5 | . . . . . . 1 4 . . . . . . . . . . . . . . . . . . . . . . . . . . . Impact Corruptions 7 | . . . . . . 4 . . . . . 3 . . . . . . . . . . . . . . . . . . . . . . Robots Melted 2 | . . . 1 . . . . 1 . . . . . . . . . . . . . . . . . . . . . . . . . . Combat Hostiles 2 | . . . 1 . . . . 1 . . . . . . . . . . . . . . . . . . . . . . . . . . Parts Melted 51 | . 1 . 17 . 1 . 2 2 . 2 . 8 . 5 . . . 2 5 1 . . 2 . 1 . . 1 . . . 1 . . Heat Transferred 27359 | . 989 . 3914 . 111 592 1998 1100 200 650 . 4024 525 1475 325 275 . 1375 1075 1700 625 . 1575 1608 400 850 125 625 150 629 . 407 . 37 Parts Sabotaged . | . . . . . . . . . . . . . . . . . . . . . . . . . . . . . . . . . . . Parts Stolen . | . . . . . . . . . . . . . . . . . . . . . . . . . . . . . . . . . . . Parts Stripped . | . . . . . . . . . . . . . . . . . . . . . . . . . . . . . . . . . . . Power Chain Reactions 2 | . . . . . . . . . . . . 2 . . . . . . . . . . . . . . . . . . . . . . Alert | -11 -10 -10 -9 -9 -9 -8 -8 -7 -7 -7 -7 -7 -6 -6 -6 -6 -6 -5 -5 -5 -5 -5 -4 -4 -4 -4 -4 -3 -3 -3 -2 -2 -2 -1 ------- Run | Yrd Mat Min Mat Min Exi Min Mat Fac Low Low Zio Dee Pro Fac Low Low Dat Pro Fac Upp Upp War Pro Fac Upp Upp Zhi Pro Res Tes Res Qua Sec Acc Peak Influence 755 | 10 332 103 339 88 . 145 369 165 . . . . . 244 . . . . 359 . . . . 278 . . . . 507 527 521 402 755 481 Initial 473 | . 6 103 39 88 . . . 32 . . . . . . . . . . 119 . . . . . . . . . 473 285 296 168 141 446 Average 143 | 5 205 103 131 53 . 37 107 49 . . . . . 67 . . . . 176 . . . . 82 . . . . 484 371 383 206 332 305 Maximum Alert Level 3 | . 1 . 1 . . . 1 . . . . . . 1 . . . . 1 . . . . 1 . . . . 2 2 2 2 3 2 Low Security (%) 73 | 100 45 100 72 100 . 100 80 100 . . . . . 96 . . . . 85 . . . . 95 . . . . . . . 57 25 27 Level 1 21 | . 54 . 27 . . . 19 . . . . . . 3 . . . . 14 . . . . 4 . . . . . 65 59 39 54 46 Level 2 5 | . . . . . . . . . . . . . . . . . . . . . . . . . . . . . 100 34 40 2 14 26 Level 3 . | . . . . . . . . . . . . . . . . . . . . . . . . . . . . . . . . . 6 . Level 4 . | . . . . . . . . . . . . . . . . . . . . . . . . . . . . . . . . . . . Level 5 . | . . . . . . . . . . . . . . . . . . . . . . . . . . . . . . . . . . . High Security . | . . . . . . . . . . . . . . . . . . . . . . . . . . . . . . . . . . . Max Security . | . . . . . . . . . . . . . . . . . . . . . . . . . . . . . . . . . . . Squads Dispatched 53 | . 2 . 2 . . . 2 6 . . . . . 5 . . . 1 2 . . . . 10 . . . . . 5 3 5 6 4 Investigation 11 | . 1 . . . . . . . . . . . . 2 . . . 1 1 . . . . 3 . . . . . 1 1 . . 1 Extermination 15 | . . . . . . . . 4 . . . . . 2 . . . . 1 . . . . 4 . . . . . 1 . 2 . 1 Reinforcement 26 | . 1 . 2 . . . 2 2 . . . . . 1 . . . . . . . . . 3 . . . . . 2 2 3 6 2 Assault 1 | . . . . . . . . . . . . . . . . . . . . . . . . . . . . . . 1 . . . . Garrison . | . . . . . . . . . . . . . . . . . . . . . . . . . . . . . . . . . . . Intercept . | . . . . . . . . . . . . . . . . . . . . . . . . . . . . . . . . . . . Searches Triggered 2 | . . . . . . . . . . . . . . . . . . . . . . . . . . . . . . . . 1 . 1 Data Miner Redirects 2 | . . . . . . . . . . . . . . . . . . . 1 . . . . . . . . . . . . . . 1 Construction Impeded 1 | . . . . . . . . . . . . . . . . . . . . . . . . . . . . . . . . 1 . . Haulers Reinforced 1 | . . . . . . . . . . . . . . . . . . . . . . . . 1 . . . . . . . . . . Active Scanning Responses . | . . . . . . . . . . . . . . . . . . . . . . . . . . . . . . . . . . . Cargo Convoy Interrupts 1 | . . . . . . . . . . . . . . . . . . . . . . . . 1 . . . . . . . . . . Stealth | -11 -10 -10 -9 -9 -9 -8 -8 -7 -7 -7 -7 -7 -6 -6 -6 -6 -6 -5 -5 -5 -5 -5 -4 -4 -4 -4 -4 -3 -3 -3 -2 -2 -2 -1 --------- Run | Yrd Mat Min Mat Min Exi Min Mat Fac Low Low Zio Dee Pro Fac Low Low Dat Pro Fac Upp Upp War Pro Fac Upp Upp Zhi Pro Res Tes Res Qua Sec Acc Distress Signals 23 | . 1 . 3 . . . 2 . . . . . . 1 . . . . 1 . . 1 . . . . . 2 . . 5 . . 7 Communications Jammed 290 | . . . . . . . 85 1 . . . . . 74 . . . . 13 . . . . 78 . . . . . . . 19 20 . Distress Signals 289 | . . . . . . . 85 . . . . . . 74 . . . . 13 . . . . 78 . . . . . . . 19 20 . Times Spotted 655 | . 28 23 46 . . 8 40 13 2 5 . 80 11 23 1 5 . 18 14 23 15 1 20 54 5 4 . 11 1 32 36 25 42 69 Peak Tracking Total 37 | . 6 21 7 . . 3 4 3 1 4 . 37 4 5 1 2 . 3 6 7 4 . 6 25 4 2 . 5 1 9 6 11 15 13 Tactical Retreats 39 | . . . 1 . . 1 . . . . . 4 . . . . . . . 2 . . . 3 . . . . . 5 7 1 3 12 Traps | -11 -10 -10 -9 -9 -9 -8 -8 -7 -7 -7 -7 -7 -6 -6 -6 -6 -6 -5 -5 -5 -5 -5 -4 -4 -4 -4 -4 -3 -3 -3 -2 -2 -2 -1 ------- Run | Yrd Mat Min Mat Min Exi Min Mat Fac Low Low Zio Dee Pro Fac Low Low Dat Pro Fac Upp Upp War Pro Fac Upp Upp Zhi Pro Res Tes Res Qua Sec Acc Traps Triggered 6 | . . . 1 . . . . . . . . . . . . . . . . . . . . 2 . . . . . 1 . . 1 1 Indirectly . | . . . . . . . . . . . . . . . . . . . . . . . . . . . . . . . . . . . Trap Hack Attempts 6 | . . . . . . . 6 . . . . . . . . . . . . . . . . . . . . . . . . . . . Triggered . | . . . . . . . . . . . . . . . . . . . . . . . . . . . . . . . . . . . Disarmed 1 | . . . . . . . 1 . . . . . . . . . . . . . . . . . . . . . . . . . . . Reprogrammed . | . . . . . . . . . . . . . . . . . . . . . . . . . . . . . . . . . . . Reused . | . . . . . . . . . . . . . . . . . . . . . . . . . . . . . . . . . . . Traps Extracted . | . . . . . . . . . . . . . . . . . . . . . . . . . . . . . . . . . . . Installed . | . . . . . . . . . . . . . . . . . . . . . . . . . . . . . . . . . . . Triggered 17 | . . . . . . . . . . . . . . . 2 . . . . . . 15 . . . . . . . . . . . . Machines | -11 -10 -10 -9 -9 -9 -8 -8 -7 -7 -7 -7 -7 -6 -6 -6 -6 -6 -5 -5 -5 -5 -5 -4 -4 -4 -4 -4 -3 -3 -3 -2 -2 -2 -1 ---------- Run | Yrd Mat Min Mat Min Exi Min Mat Fac Low Low Zio Dee Pro Fac Low Low Dat Pro Fac Upp Upp War Pro Fac Upp Upp Zhi Pro Res Tes Res Qua Sec Acc Machines Disabled 38 | . 2 . 4 . . 1 1 . . . 3 2 . 2 1 . . 2 . . . . 3 1 . . . . . 4 . 6 6 . Max in Single Turn 1 | . 1 . 1 . . 1 1 . . . 1 1 . 1 1 . . 1 . . . . 1 1 . . . . . 1 . 1 1 . Garrison Access 7 | . . . . . . . . . . . . . . . . . . . . . . . . . . . . . . 1 4 1 1 . Machines Repaired . | . . . . . . . . . . . . . . . . . . . . . . . . . . . . . . . . . . . Machines Dismantled 3 | . . . . . . . . . . . 3 . . . . . . . . . . . . . . . . . . . . . . . Machines Sabotaged . | . . . . . . . . . . . . . . . . . . . . . . . . . . . . . . . . . . . Overloaded Fab Kills . | . . . . . . . . . . . . . . . . . . . . . . . . . . . . . . . . . . . Hacking | -11 -10 -10 -9 -9 -9 -8 -8 -7 -7 -7 -7 -7 -6 -6 -6 -6 -6 -5 -5 -5 -5 -5 -4 -4 -4 -4 -4 -3 -3 -3 -2 -2 -2 -1 --------- Run | Yrd Mat Min Mat Min Exi Min Mat Fac Low Low Zio Dee Pro Fac Low Low Dat Pro Fac Upp Upp War Pro Fac Upp Upp Zhi Pro Res Tes Res Qua Sec Acc Machines Accessed 91 | . 3 . 9 1 2 . 6 1 . . . . . 7 . . 4 1 4 . . 5 1 12 . . 4 . 1 7 4 8 3 8 Terminals 54 | . 1 . 7 . . . 5 1 . . . . . 4 . . . 1 3 . . . 1 8 . . . . 1 5 1 7 2 7 Fabricators 7 | . . . . . . . . . . . . . . 2 . . . . 1 . . . . 2 . . . . . 1 . . . 1 Repair Stations 4 | . 1 . 1 . . . . . . . . . . 1 . . . . . . . . . 1 . . . . . . . . . . Recycling Units 1 | . 1 . . . . . . . . . . . . . . . . . . . . . . . . . . . . . . . . . Scanalyzers 3 | . . . 1 . . . 1 . . . . . . . . . . . . . . . . 1 . . . . . . . . . . Garrison Access 6 | . . . . . . . . . . . . . . . . . . . . . . . . . . . . . . 1 3 1 1 . Total Hacks 284 | . 5 . 32 1 2 . 20 4 . . . . . 24 . . 28 3 11 . . 9 6 36 . . 17 . 2 14 5 35 8 22 Successful 181 | . 3 . 17 1 2 . 14 2 . . . . . 12 . . 28 3 5 . . 9 6 20 . . 17 . 1 4 3 23 4 7 Failed 103 | . 2 . 15 . . . 6 2 . . . . . 12 . . . . 6 . . . . 16 . . . . 1 10 2 12 4 15 Catastrophic 14 | . . . 1 . . . 1 . . . . . . 1 . . . . 1 . . . . 3 . . . . . 2 1 3 . 1 Database Lockouts . | . . . . . . . . . . . . . . . . . . . . . . . . . . . . . . . . . . . Manual 125 | . 3 . 20 . 1 . 13 4 . . 1 . . 15 . . . . 4 . . 1 . 24 . . . . 2 7 . 21 1 8 Terminals 182 | . 2 . 26 . . . 18 4 . . . . . 15 . . . 3 9 . . . 6 27 . . . . 2 11 2 34 7 16 Fabricators 21 | . . . . . . . . . . . . . . 6 . . . . 2 . . . . 5 . . . . . 2 . . . 6 Repair Stations 10 | . 2 . 3 . . . . . . . . . . 3 . . . . . . . . . 2 . . . . . . . . . . Recycling Units 1 | . 1 . . . . . . . . . . . . . . . . . . . . . . . . . . . . . . . . . Scanalyzers 7 | . . . 3 . . . 2 . . . . . . . . . . . . . . . . 2 . . . . . . . . . . Garrison Access 6 | . . . . . . . . . . . . . . . . . . . . . . . . . . . . . . 1 3 1 1 . Terminal Hacks 113 | . . . 7 1 2 . 7 2 . . . . . 2 . . 28 3 3 . . 9 6 3 . . 17 . . 2 . 13 3 5 Record 34 | . . . . . 1 . . . . . . . . . . . 11 3 . . . 8 6 . . . 5 . . . . . . . Part Schematic 16 | . . . 1 . . . . . . . . . . . . . 10 . . . . . . 1 . . 4 . . . . . . . Robot Schematic 4 | . . . . . . . . . . . . . . . . . 4 . . . . . . . . . . . . . . . . . Robot Analysis 6 | . . . 1 . . . 1 . . . . . . . . . . . . . . . . . . . 4 . . . . . . . Prototype ID Bank 9 | . . . . . . . 1 . . . . . . . . . 3 . . . . . . . . . 4 . . . . 1 . . Open Door 4 | . . . . 1 . . . . . . . . . . . . . . . . . 1 . . . . . . . 1 . 1 . . Level Access Points 2 | . . . . . . . . . . . . . . . . . . . . . . . . . . . . . . . . . 1 1 Branch Access Points 5 | . . . 1 . . . . 1 . . . . . 1 . . . . 1 . . . . . . . . . . . . . . 1 Emergency Access Points 1 | . . . . . . . . . . . . . . . . . . . . . . . . . . . . . . . . . 1 . Terminal Index 3 | . . . . . . . 1 . . . . . . . . . . . . . . . . 1 . . . . . . . 1 . . Alert Level 5 | . . . . . . . 1 . . . . . . . . . . . . . . . . . . . . . . 1 . 2 . 1 Unreport Threat 9 | . . . 2 . . . 2 1 . . . . . 1 . . . . 1 . . . . . . . . . . . . 1 . 1 Locate Traps 6 | . . . 2 . . . 1 . . . . . . . . . . . 1 . . . . . . . . . . . . 2 . . Patrol Status 1 | . . . . . . . . . . . . . . . . . . . . . . . . . . . . . . . . 1 . . Recall Reinforcements 1 | . . . . . . . . . . . . . . . . . . . . . . . . 1 . . . . . . . . . . Hauler Manifests 1 | . . . . . . . . . . . . . . . . . . . . . . . . . . . . . . . . 1 . . Zone Layout 5 | . . . . . . . . . . . . . . . . . . . . . . . . . . . . . . . . 3 1 1 Derelict Proto ID Bank 1 | . . . . . 1 . . . . . . . . . . . . . . . . . . . . . . . . . . . . . Fabricator Hacks 10 | . . . . . . . . . . . . . . 4 . . . . . . . . . 4 . . . . . 1 . . . 1 Network Status 2 | . . . . . . . . . . . . . . 1 . . . . . . . . . 1 . . . . . . . . . . Load Schematic 5 | . . . . . . . . . . . . . . 2 . . . . . . . . . 2 . . . . . 1 . . . . Build 3 | . . . . . . . . . . . . . . 1 . . . . . . . . . 1 . . . . . . . . . 1 Repair Station Hacks 5 | . 1 . 1 . . . . . . . . . . 1 . . . . . . . . . 2 . . . . . . . . . . Scan Component 4 | . 1 . 1 . . . . . . . . . . 1 . . . . . . . . . 1 . . . . . . . . . . Repair 1 | . . . . . . . . . . . . . . . . . . . . . . . . 1 . . . . . . . . . . Recycling Unit Hacks . | . . . . . . . . . . . . . . . . . . . . . . . . . . . . . . . . . . . Scanalyzer 7 | . . . 3 . . . 2 . . . . . . . . . . . . . . . . 2 . . . . . . . . . . Insert Component 3 | . . . 1 . . . 1 . . . . . . . . . . . . . . . . 1 . . . . . . . . . . Analyze 4 | . . . 2 . . . 1 . . . . . . . . . . . . . . . . 1 . . . . . . . . . . Garrison Access Hacks 5 | . . . . . . . . . . . . . . . . . . . . . . . . . . . . . . . 3 1 1 . Seal Access 5 | . . . . . . . . . . . . . . . . . . . . . . . . . . . . . . . 3 1 1 . Unauthorized Hacks 41 | . 2 . 6 . . . 5 . . . . . . 5 . . . . 2 . . . . 9 . . . . 1 1 . 9 . 1 Terminals 37 | . 1 . 6 . . . 5 . . . . . . 4 . . . . 2 . . . . 8 . . . . 1 1 . 9 . . Track 1 | . . . . . . . . . . . . . . . . . . . . . . . . . . . . . . . . 1 . . Assimilate 2 | . . . . . . . . . . . . . . . . . . . . . . . . 1 . . . . . . . 1 . . Botnet 8 | . . . . . . . 1 . . . . . . 1 . . . . 1 . . . . 1 . . . . 1 1 . 2 . . Operators 2 | . . . . . . . . . . . . . . . . . . . . . . . . 1 . . . . . . . 1 . . Skim 24 | . 1 . 6 . . . 4 . . . . . . 3 . . . . 1 . . . . 5 . . . . . . . 4 . . Fabricators 3 | . . . . . . . . . . . . . . 1 . . . . . . . . . 1 . . . . . . . . . 1 Prioritize 1 | . . . . . . . . . . . . . . . . . . . . . . . . . . . . . . . . . . 1 Recompile 2 | . . . . . . . . . . . . . . 1 . . . . . . . . . 1 . . . . . . . . . . Repair Stations . | . . . . . . . . . . . . . . . . . . . . . . . . . . . . . . . . . . . Recycling Units 1 | . 1 . . . . . . . . . . . . . . . . . . . . . . . . . . . . . . . . . Tunnel 1 | . 1 . . . . . . . . . . . . . . . . . . . . . . . . . . . . . . . . . Scanalyzers . | . . . . . . . . . . . . . . . . . . . . . . . . . . . . . . . . . . . Garrison Access . | . . . . . . . . . . . . . . . . . . . . . . . . . . . . . . . . . . . Data Cores Recovered 1 | . . . . . . . . . . . . . . 1 . . . . . . . . . . . . . . . . . . . . Used 1 | . . . . . . . . . . . . . . 1 . . . . . . . . . . . . . . . . . . . . Hacking Detections 59 | . 2 . 7 . . . 6 1 . . . . . 6 . . . 1 4 . . . . 11 . . . . . 6 1 5 2 7 Full Trace Events 8 | . . . 1 . . . . . . . . . . 1 . . . 1 1 . . . . 2 . . . . . 1 1 . . . Feedback Events 1 | . . . . . . . . . . . . . . . . . . . . . . . . 1 . . . . . . . . . . Corruption 1 | . . . . . . . . . . . . . . . . . . . . . . . . 1 . . . . . . . . . . Feedback Blocked . | . . . . . . . . . . . . . . . . . . . . . . . . . . . . . . . . . . . Robot Schematics Acquired 8 | . . . . . . . . . . . 4 . . . . . 4 . . . . . . . . . . . . . . . . . Robots Built . | . . . . . . . . . . . . . . . . . . . . . . . . . . . . . . . . . . . Authchips . | . . . . . . . . . . . . . . . . . . . . . . . . . . . . . . . . . . . Time . | . . . . . . . . . . . . . . . . . . . . . . . . . . . . . . . . . . . Total Robot Build Rating . | . . . . . . . . . . . . . . . . . . . . . . . . . . . . . . . . . . . Part Schematics Acquired 31 | . . . 2 . . . 1 . . . 13 . . . . . 10 . . . . . . 1 . . 4 . . . . . . . Parts Built 3 | . . . . . . . . . . . . . . 1 . . . . . . . . . 1 . . . . . . . . . 1 Authchips 1 | . . . . . . . . . . . . . . 1 . . . . . . . . . . . . . . . . . . . . Time 242 | . . . . . . . . . . . . . . 47 . . . . . . . . . 84 . . . . . . . . . 111 Total Part Build Rating 20 | . . . . . . . . . . . . . . 5 . . . . . . . . . 6 . . . . . . . . . 9 Parts Repaired 1 | . . . . . . . . . . . . . . . . . . . . . . . . 1 . . . . . . . . . . Time 22 | . . . . . . . . . . . . . . . . . . . . . . . . 22 . . . . . . . . . . Parts Recycled . | . . . . . . . . . . . . . . . . . . . . . . . . . . . . . . . . . . . Recycled Matter . | . . . . . . . . . . . . . . . . . . . . . . . . . . . . . . . . . . . Retrieved Matter . | . . . . . . . . . . . . . . . . . . . . . . . . . . . . . . . . . . . Retrieved Components . | . . . . . . . . . . . . . . . . . . . . . . . . . . . . . . . . . . . Parts Scanalyzed 3 | . . . 1 . . . 1 . . . . . . . . . . . . . . . . 1 . . . . . . . . . . Part Schematics Acquired 2 | . . . 1 . . . 1 . . . . . . . . . . . . . . . . . . . . . . . . . . . Parts Damaged . | . . . . . . . . . . . . . . . . . . . . . . . . . . . . . . . . . . . Bothacking | -11 -10 -10 -9 -9 -9 -8 -8 -7 -7 -7 -7 -7 -6 -6 -6 -6 -6 -5 -5 -5 -5 -5 -4 -4 -4 -4 -4 -3 -3 -3 -2 -2 -2 -1 ------------ Run | Yrd Mat Min Mat Min Exi Min Mat Fac Low Low Zio Dee Pro Fac Low Low Dat Pro Fac Upp Upp War Pro Fac Upp Upp Zhi Pro Res Tes Res Qua Sec Acc Used RIF Installer . | . . . . . . . . . . . . . . . . . . . . . . . . . . . . . . . . . . . Robots Hacked 3 | . . . . . . . . . . . 3 . . . . . . . . . . . . . . . . . . . . . . . Non-combat . | . . . . . . . . . . . . . . . . . . . . . . . . . . . . . . . . . . . Combat 3 | . . . . . . . . . . . 3 . . . . . . . . . . . . . . . . . . . . . . . Robot Hacks Applied 3 | . . . . . . . . . . . 3 . . . . . . . . . . . . . . . . . . . . . . . parse_system 3 | . . . . . . . . . . . 3 . . . . . . . . . . . . . . . . . . . . . . . Relay Couplers Released 3 | . . . . . . . . . . . . . . . . . . . . . . . . . . . . . . 1 2 . . . Machine Destruction 3 | . . . . . . . . . . . . . . . . . . . . . . . . . . . . . . 1 2 . . . Fabnet Peak Effective % . | . . . . . . . . . . . . . . . . . . . . . . . . . . . . . . . . . . . Robots Rewired 6 | . . . . . 3 . . . . . . . . . . . . . . 2 . . . 1 . . . . . . . . . . Allies Hacked . | . . . . . . . . . . . . . . . . . . . . . . . . . . . . . . . . . . . Hacks Repelled . | . . . . . . . . . . . . . . . . . . . . . . . . . . . . . . . . . . . Allies | -11 -10 -10 -9 -9 -9 -8 -8 -7 -7 -7 -7 -7 -6 -6 -6 -6 -6 -5 -5 -5 -5 -5 -4 -4 -4 -4 -4 -3 -3 -3 -2 -2 -2 -1 -------- Run | Yrd Mat Min Mat Min Exi Min Mat Fac Low Low Zio Dee Pro Fac Low Low Dat Pro Fac Upp Upp War Pro Fac Upp Upp Zhi Pro Res Tes Res Qua Sec Acc Total Allies 17 | . . . . 2 3 . . . . . 2 . . . . . . . . 2 . . . 1 . . . . . . . . . 7 Largest Group 5 | . . . . 2 3 3 . . . . 2 2 . . . . . . . 2 . . . 1 . . . . . . . . . 5 Highest-Rated Group 192 | . . . . 38 38 24 . . . . 192 192 . . . . . . . 58 . . . 12 . . . . . . . . . 67 Highest-Rated Ally 96 | . . . . 31 31 8 . . . . 96 96 . . . . . . . 29 . . . 12 . . . . . . . . . 15 Total Orders 2 | . . . . . 2 . . . . . . . . . . . . . . . . . . . . . . . . . . . . . STAY 1 | . . . . . 1 . . . . . . . . . . . . . . . . . . . . . . . . . . . . . FOLLOW 1 | . . . . . 1 . . . . . . . . . . . . . . . . . . . . . . . . . . . . . Ally Attacks 63 | . . . . . . 1 . . . . . 28 . . . . . . . 20 . . . . . . . . . . . . . 14 Total Damage 1524 | . . . . . . 11 . . . . . 711 . . . . . . . 264 . . . . . . . . . . . . . 538 Kills 5 | . . . . . . . . . . . . 2 . . . . . . . 2 . . . . . . . . . . . . . 1 Allies Corrupted . | . . . . . . . . . . . . . . . . . . . . . . . . . . . . . . . . . . . Allies Melted 2 | . . . . . . . . . . . . . . . . . . . . . . 1 . . . . . . . . 1 . . . Intel | -11 -10 -10 -9 -9 -9 -8 -8 -7 -7 -7 -7 -7 -6 -6 -6 -6 -6 -5 -5 -5 -5 -5 -4 -4 -4 -4 -4 -3 -3 -3 -2 -2 -2 -1 ------- Run | Yrd Mat Min Mat Min Exi Min Mat Fac Low Low Zio Dee Pro Fac Low Low Dat Pro Fac Upp Upp War Pro Fac Upp Upp Zhi Pro Res Tes Res Qua Sec Acc Robot Analysis Total 6 | . . . 1 . . . 1 . . . . . . . . . . . . . . . . . . . 4 . . . . . . . Derelict Logs Recovered 16 | . . . . 1 . . . . 1 1 1 . 2 . . 1 . . . 1 2 . 2 . 1 3 . . . . . . . . Drone Launches . | . . . . . . . . . . . . . . . . . . . . . . . . . . . . . . . . . . . Drone Recoveries . | . . . . . . . . . . . . . . . . . . . . . . . . . . . . . . . . . . . Exploration | -11 -10 -10 -9 -9 -9 -8 -8 -7 -7 -7 -7 -7 -6 -6 -6 -6 -6 -5 -5 -5 -5 -5 -4 -4 -4 -4 -4 -3 -3 -3 -2 -2 -2 -1 ------------- Run | Yrd Mat Min Mat Min Exi Min Mat Fac Low Low Zio Dee Pro Fac Low Low Dat Pro Fac Upp Upp War Pro Fac Upp Upp Zhi Pro Res Tes Res Qua Sec Acc Turns Passed 44881 | 148 614 25 2876 656 1457 1264 3346 1461 1514 1154 2454 5614 998 1390 1417 814 183 982 752 1802 1275 1284 1704 2197 1411 1431 416 528 184 628 876 761 319 946 Spaces Moved 18622 | 64 229 34 812 203 443 364 878 380 387 291 714 1851 445 516 561 306 77 321 263 451 503 416 420 932 422 514 151 258 107 1018 1748 963 516 1064 Core 400 | 6 . 34 13 . . . . . . . . . . . . . . . . . . . . 70 . . . . . 1 . . 4 272 Treads 5213 | 58 229 . 799 203 443 364 878 380 387 291 714 467 . . . . . . . . . . . . . . . . . . . . . . Legs 7933 | . . . . . . . . . . . . 1384 445 516 561 306 77 321 263 451 503 416 420 862 422 514 151 258 34 . . . . 29 Wheels . | . . . . . . . . . . . . . . . . . . . . . . . . . . . . . . . . . . . Hover 305 | . . . . . . . . . . . . . . . . . . . . . . . . . . . . . . . . . . 305 Flight 4771 | . . . . . . . . . . . . . . . . . . . . . . . . . . . . . 73 1017 1748 963 512 458 Fastest Speed 40 | 50 160 50 50 320 320 320 320 320 320 325 325 115 210 150 240 240 240 240 240 210 240 210 240 50 150 180 150 180 40 40 42 42 42 40 Average Speed 193 | 149 160 50 301 320 320 320 320 323 366 336 325 224 210 215 240 240 240 240 240 242 240 239 240 197 179 180 150 180 74 44 42 48 42 65 Slowest Speed 405 | 160 320 50 320 320 320 320 320 400 405 405 405 400 210 240 240 240 240 240 240 360 240 240 240 240 180 180 180 180 150 125 125 202 150 260 Overloaded Moves . | . . . . . . . . . . . . . . . . . . . . . . . . . . . . . . . . . . . Propulsion Burnouts . | . . . . . . . . . . . . . . . . . . . . . . . . . . . . . . . . . . . Robots Hopped 34 | . . . . . . . . . . . . . . . . . . . . . . 1 . . . . . . 1 4 12 3 9 4 Cave-ins Triggered . | . . . . . . . . . . . . . . . . . . . . . . . . . . . . . . . . . . . Teleports 2 | . . . . . . . . . . . . . . . . . . . . . . . . . . . . . . . . . . 2 Exploration Rate (%) 54 | 5 46 16 68 39 88 85 66 13 60 45 86 89 81 17 84 48 74 52 11 64 72 72 66 29 65 68 60 40 3 80 60 84 38 25 Regions Visited 34 Branch Regions 24 Pre-discovered Areas 12 | . 1 . . . 1 . . . . . 1 . 1 . . . 1 . . . . 1 1 1 1 . 3 . . . . . . . Known Exits Taken 13 | . . . 1 . . 1 . 1 1 1 . . . 1 . . . 1 1 . . . 1 1 . . . 1 . 1 . . 1 . Unknown Exits Taken 21 | 1 1 1 . 1 1 . 1 . . . 1 1 1 . 1 1 1 . . 1 1 1 . . 1 1 1 . 1 . 1 1 . . Scrap Searched 28 | . . . . . . 1 . . 3 3 1 . 4 . . 4 . 2 . 3 2 . 1 . . 2 . 2 . . . . . . Spaces Dug 129 | . . . . . . . 1 3 1 . . 1 . 8 5 22 . 1 13 . . . 1 33 . 1 . . . 5 9 15 9 1 Terrain Destroyed 505 | . 17 . 47 . . . 2 3 1 . . 41 10 35 8 33 . 25 32 23 11 . 28 68 20 25 . 29 . 6 9 22 9 1 Melee 35 | . . . . . . . 1 3 1 . . . . . . . . . . . . . . . . . . . . 4 8 10 7 1 Projectile 395 | . . . . . . . 1 . . . . 30 10 35 8 33 . 25 32 23 11 . 28 68 20 25 . 29 . 2 1 12 2 . AOE 75 | . 17 . 47 . . . . . . . . 11 . . . . . . . . . . . . . . . . . . . . . . Terrain Rammed . | . . . . . . . . . . . . . . . . . . . . . . . . . . . . . . . . . . . Walls Destroyed . | . . . . . . . . . . . . . . . . . . . . . . . . . . . . . . . . . . . Machines Disabled . | . . . . . . . . . . . . . . . . . . . . . . . . . . . . . . . . . . . Actions | -11 -10 -10 -9 -9 -9 -8 -8 -7 -7 -7 -7 -7 -6 -6 -6 -6 -6 -5 -5 -5 -5 -5 -4 -4 -4 -4 -4 -3 -3 -3 -2 -2 -2 -1 --------- Run | Yrd Mat Min Mat Min Exi Min Mat Fac Low Low Zio Dee Pro Fac Low Low Dat Pro Fac Upp Upp War Pro Fac Upp Upp Zhi Pro Res Tes Res Qua Sec Acc Total 25516 | 89 333 38 1050 215 478 413 1185 541 466 443 794 3091 479 709 611 342 76 450 329 1099 543 710 1037 1174 1047 980 338 282 209 1150 1823 1170 572 1250 Wait 4339 | . 9 . 62 . . 5 22 83 55 131 . 875 17 51 35 10 . 78 4 537 16 267 542 95 604 434 170 4 85 8 1 65 11 63 Move 18525 | 63 228 33 811 202 442 363 877 379 386 290 713 1850 444 515 560 305 76 320 262 450 502 413 419 931 421 513 150 257 104 1011 1724 956 499 1056 Hop 28 | . . . . . . . . . . . . . . . . . . . . . . 1 . . . . . . 1 2 11 3 6 4 Pick Up 295 | 3 12 1 33 5 3 4 35 5 1 2 7 55 1 29 . 2 . 4 11 10 6 4 8 10 2 . 1 . . 9 10 14 . 8 Fast Attach 200 | 7 . . 7 1 3 2 8 4 2 . 11 30 . 3 2 . . . 1 2 . 6 1 9 . . 3 1 4 29 16 16 15 17 Attach 113 | . 4 2 7 . . 2 10 3 2 3 3 9 . 5 . . . . 2 2 . 1 1 14 . . . . . 6 2 12 5 18 Detach 68 | . . . 2 . 1 1 4 1 . 1 4 5 . . . . . . . . . 5 1 . . 1 . . . 12 3 12 6 9 Swap 160 | 1 6 1 17 1 1 4 34 13 6 1 7 19 . 6 . . . . 2 2 . . 3 5 2 . . . . 10 10 6 2 1 Drop 541 | . 2 . 13 6 7 5 43 6 3 . 18 107 1 42 2 2 . 4 17 21 5 13 16 39 4 11 9 2 13 33 20 33 9 35 Fire 990 | 15 70 1 97 . 4 17 145 44 10 15 1 123 16 55 12 23 . 44 30 32 14 . 46 64 14 21 5 18 2 21 1 19 6 5 Melee 146 | . . . . . . 10 1 3 1 . 3 18 . . . . . . . . . . . . . . . . . 9 25 34 12 30 Ram 4 | . . . . . . . . . . . . . . . . . . . . . . . . . . . . . . . . . . 4 Kick 5 | . . . . . . . . . . . . . . 3 . . . . . . . . . 2 . . . . . . . . . . Crush 3 | . 2 . 1 . . . . . . . . . . . . . . . . . . . . . . . . . . . . . . . Escape Stasis 1 | . . . . . . . . . . . . . . . . . . . . . . . . . . . . . . . . . 1 . Rewire 65 | . . . . . 17 . . . . . . . . . . . . . . 43 . . . 5 . . . . . . . . . . Trap 6 | . . . . . . . 6 . . . . . . . . . . . . . . . . . . . . . . . . . . . Miscellaneous 27 | . . . . . . . . . . . 27 . . . . . . . . . . . . . . . . . . . . . . . Route ------- -11/Scrapyard -10/Materials -10/Mines -9/Materials (discovered 6 exits: *Mat x3 / *Min x2 / *Sto) -9/Mines (discovered 2 exits: Mat / *Exi) -9/Exiles -8/Mines (discovered 2 exits: *Mat x2) -8/Materials (discovered 2 exits: *Fac x2) -7/Factory (discovered 2 exits: *Low x2) -7/Lower Caves -7/Lower Caves -7/Zion (discovered 2 exits: [*Dee] / [*Pro]) -7/Deep Caves -6/Proximity Caves -6/Factory (discovered 2 exits: *Low x2) -6/Lower Caves -6/Lower Caves (discovered 2 exits: *Fac / *Dat) -6/Data Miner -5/Proximity Caves -5/Factory (discovered 8 exits: Fac x4 / *Upp x2 / Ext x2) -5/Upper Caves -5/Upper Caves (discovered 2 exits: *Fac / *War) -5/Warlord -4/Proximity Caves -4/Factory (discovered 5 exits: *Res x3 / *Upp x2) -4/Upper Caves -4/Upper Caves (discovered 2 exits: Res / *Zhi) -4/Zhirov -3/Proximity Caves -3/Research (discovered 3 exits: Res x2 / *Tes) -3/Testing -2/Research (discovered 4 exits: *Acc x3 / *Qua) -2/Quarantine (discovered 2 exits: *Acc / *Sec) -2/Section 7 -1/Access (discovered 2 exits: Sur / Com) History --------- Turn | Location | Event 7 | -11/Scrapyard | Discovered new exit (range 16) 149 | -11/Scrapyard | Entered Materials 310 | -10/Materials | Build established: Mutant 373 | -10/Materials | Core integrity fell below 50% 387 | -10/Materials | Discovered new exit (range 10) 763 | -10/Materials | Entered Mines 764 | -10/Mines | Assembled infested the area 766 | -10/Mines | Released all parts (7) 768 | -10/Mines | Core integrity fell below 20% 769 | -10/Mines | Assisted by a Guerilla fighting off Assembled 785 | -10/Mines | Discovered new exit (range 6) 788 | -10/Mines | Entered Materials 788 | -9/Materials | Evolved 2 slots: Utility x2 1259 | -9/Materials | Discovered new exit (range 8) 1325 | -9/Materials | Build established: Scavenger-Mutant 1786 | -9/Materials | Discovered new exit (range 8) 1892 | -9/Materials | Identified exit to Mines 1892 | -9/Materials | Identified exit to Storage 2041 | -9/Materials | Build established: Mutant 2205 | -9/Materials | Destroyed 7 combat bots 2493 | -9/Materials | Discovered new exit (range 12) 3335 | -9/Materials | Discovered new exit (range 16) 3373 | -9/Materials | Loaded intel: 2 recycling unit locations 3409 | -9/Materials | Learned 4 Materials zone layouts 3433 | -9/Materials | Learned 2 Storage zone layouts 3446 | -9/Materials | Learned location of 1 exit from Recycling 3451 | -9/Materials | Learned 2 Storage zone layouts 3468 | -9/Materials | Learned Storage emergency access door positions 3488 | -9/Materials | Build established: Scavenger-Mutant 3495 | -9/Materials | Identified exit to Materials 3664 | -9/Materials | Entered Mines 3844 | -9/Mines | Found a hidden stash of uninstalled traps 3965 | -9/Mines | Learned location of 1 exit from Lower Caves 4129 | -9/Mines | Met a Derelict who couldn't figure out how to use a Trap Extractor 4307 | -9/Mines | Deemed a non-threat by the Exiles lab entrance 4307 | -9/Mines | Discovered new exit (range 5) 4320 | -9/Mines | Entered Exiles 4320 | -9/Exiles | Found Exiles lab destroyed 4320 | -9/Exiles | Accompanied by 2 allies 4350 | -9/Exiles | Led the pair of lost Derelicts to a safe place 5341 | -9/Exiles | Opened EX-Vault 5348 | -9/Exiles | Found Prototype Energy Gun 5348 | -9/Exiles | Identified AWS/Thermal 5630 | -9/Exiles | Learned location of Zion (-7) 5748 | -9/Exiles | Discovered new exit (range 11) 5777 | -9/Exiles | Entered Mines 5777 | -8/Mines | Accompanied by 3 allies 6187 | -8/Mines | Discovered exit to Materials (range 8) 6411 | -8/Mines | Discovered exit to Materials (range 5) 7041 | -8/Mines | Entered Materials 7041 | -8/Materials | Evolved 2 slots: Utility x2 8572 | -8/Materials | Build established: Mutant 8932 | -8/Materials | Discovered new exit (range 13) 9597 | -8/Materials | Core integrity fell below 50% 9906 | -8/Materials | Discovered new exit (range 20) 10387 | -8/Materials | Entered Factory 10387 | -7/Factory | Evolved 2 slots: Power x1, Utility x1 11222 | -7/Factory | Discovered new exit (range 6) 11602 | -7/Factory | Identified exit to Lower Caves 11848 | -7/Factory | Entered Lower Caves 11849 | -7/Lower Caves | Identified exit to Lower Caves 12301 | -7/Lower Caves | Encountered a Warlord checkpoint 13296 | -7/Lower Caves | Found Alien Artifact 13296 | -7/Lower Caves | Identified Core Expander 13296 | -7/Lower Caves | Installed Core Expander, added new Utility slot 13362 | -7/Lower Caves | Entered another Lower Caves area 13718 | -7/Lower Caves | Lost 3 parts (1p1u1w) 14024 | -7/Lower Caves | Identified exit to Zion 14100 | -7/Lower Caves | Encountered a Warlord checkpoint 14382 | -7/Lower Caves | Attracted the attention of an 0b10 checkpoint 14516 | -7/Lower Caves | Entered Zion 14754 | -7/Zion | Given A8's code to call for help 14856 | -7/Zion | Found Prototype Hackware 14867 | -7/Zion | Found Prototype Processor 14867 | -7/Zion | Identified Exp. Armor Integrity Analyzer 14873 | -7/Zion | Found Prototype Processor 14873 | -7/Zion | Identified Spectral Analyzer 14878 | -7/Zion | Found Prototype Processor 14878 | -7/Zion | Identified Exp. Target Analyzer 14892 | -7/Zion | Found Exp. Armor Integrity Analyzer 14952 | -7/Zion | Discovered new exit (range 10) 15173 | -7/Zion | Learned Factory garrison access intel 15594 | -7/Zion | Met Imprinter 15763 | -7/Zion | Given the Hacking Drone Bay 15764 | -7/Zion | Found Prototype Device 15764 | -7/Zion | Identified Hacking Drone Bay 16809 | -7/Zion | Enhanced Grunt warped into view, answering call for help 16811 | -7/Zion | Enhanced Grunt warped into view, answering call for help 16910 | -7/Zion | Discovered new exit (range 5) 16913 | -7/Zion | Saw the warning signs outside the Deep Caves entrance 16970 | -7/Zion | Entered Deep Caves 16970 | -7/Deep Caves | Accompanied by 2 allies 17214 | -7/Deep Caves | Attacked by Z-Imprinter 17225 | -7/Deep Caves | Destroyed Z-Imprinter 17276 | -7/Deep Caves | Found Prototype Protection 17276 | -7/Deep Caves | Identified Zio. Weapon Casing 17623 | -7/Deep Caves | Z-Facility disabled 17642 | -7/Deep Caves | Found Prototype Device 17642 | -7/Deep Caves | Identified Exp. Thermal Shield 17734 | -7/Deep Caves | Found Prototype Protection 17734 | -7/Deep Caves | Identified Zio. Heavy Carapace 17907 | -7/Deep Caves | Found Zio. Heavy Carapace 17967 | -7/Deep Caves | Found Zio. Weapon Casing 18175 | -7/Deep Caves | Found Exp. Thermal Shield 18206 | -7/Deep Caves | Build established: Scavenger-Mutant 18471 | -7/Deep Caves | Spotted AG-82767 18843 | -7/Deep Caves | Destroyed AG-82767 18847 | -7/Deep Caves | Found GOLEM Unit 19337 | -7/Deep Caves | Spotted AG-82007 19396 | -7/Deep Caves | Destroyed AG-82007 19419 | -7/Deep Caves | Found GOLEM Unit 19545 | -7/Deep Caves | Triggered Deep Caves wall 19545 | -7/Deep Caves | Spotted AS-96306 19545 | -7/Deep Caves | Spotted AS-47014 19553 | -7/Deep Caves | Exposed GOLEM chamber 19565 | -7/Deep Caves | Destroyed AS-96306 19565 | -7/Deep Caves | Destroyed AS-47014 19599 | -7/Deep Caves | Destroyed 36 combat bots 19603 | -7/Deep Caves | Lost 5 parts (5u) 19613 | -7/Deep Caves | Found GOLEM Unit 19671 | -7/Deep Caves | Found GOLEM Unit 19751 | -7/Deep Caves | Found GOLEM Unit 19889 | -7/Deep Caves | Build established: Golem 19987 | -7/Deep Caves | Spotted AG-45927 19993 | -7/Deep Caves | Spotted AG-74009 20041 | -7/Deep Caves | Destroyed AG-45927 20046 | -7/Deep Caves | Found GOLEM Unit 20070 | -7/Deep Caves | Destroyed AG-74009 20073 | -7/Deep Caves | Spotted AG-90650 20110 | -7/Deep Caves | Destroyed AG-90650 20158 | -7/Deep Caves | Spotted AG-98544 20169 | -7/Deep Caves | Spotted AG-89350 20181 | -7/Deep Caves | Destroyed AG-98544 20219 | -7/Deep Caves | Core integrity fell below 50% 20232 | -7/Deep Caves | Destroyed AG-89350 20439 | -7/Deep Caves | Spotted AG-81024 20598 | -7/Deep Caves | Spotted AG-49917 20989 | -7/Deep Caves | Found Zio. Weapon Casing 20994 | -7/Deep Caves | Found Zio. Weapon Casing 21441 | -7/Deep Caves | Found Surveybot 24 Chip 21445 | -7/Deep Caves | Found Surveybot 24 Scanner 21770 | -7/Deep Caves | Destroyed AG-81024 22259 | -7/Deep Caves | Found Zio. Weapon Casing 22573 | -7/Deep Caves | Discovered new exit (range 6) 22584 | -7/Deep Caves | Entered Proximity Caves 22650 | -6/Proximity Caves | Learned Factory garrison access intel 23233 | -6/Proximity Caves | Attracted the attention of an 0b10 checkpoint 23493 | -6/Proximity Caves | Discovered new exit (range 14) 23582 | -6/Proximity Caves | Entered Factory 23582 | -6/Factory | Evolved 2 slots: Utility x2 23583 | -6/Factory | Loaded intel: 4 garrison access locations 24015 | -6/Factory | Identified exit to Lower Caves 24154 | -6/Factory | Fabricated Imp. Hacking Suite (x1) 24651 | -6/Factory | Found Hvy. Reactive Plating 24972 | -6/Factory | Entered Lower Caves 25170 | -6/Lower Caves | Attracted the attention of an 0b10 checkpoint 25480 | -6/Lower Caves | Encountered a Warlord checkpoint 26271 | -6/Lower Caves | Found Alien Artifact 26271 | -6/Lower Caves | Identified Dimensional Node Initializer 26271 | -6/Lower Caves | Initialized slip node 26351 | -6/Lower Caves | Discovered new exit (range 17) 26389 | -6/Lower Caves | Entered another Lower Caves area 26418 | -6/Lower Caves | Discovered new exit (range 20) 26497 | -6/Lower Caves | Learned location of 1 exit from Proximity Caves 26504 | -6/Lower Caves | Spotted B-75 Beast 27175 | -6/Lower Caves | Discovered new exit (range 11) 27203 | -6/Lower Caves | Entered Data Miner 27203 | -6/Data Miner | Discovered new exit (range 6) 27230 | -6/Data Miner | Met Data Miner 27290 | -6/Data Miner | Learned location of Section 7 (-2) 27290 | -6/Data Miner | Acquired the access code to Warlord's prototype stash 27331 | -6/Data Miner | Received God Mode back door access code from Data Miner 27386 | -6/Data Miner | Entered Proximity Caves 27387 | -5/Proximity Caves | Identified exit to Factory 27579 | -5/Proximity Caves | Attracted the attention of an 0b10 checkpoint 28024 | -5/Proximity Caves | Attracted the attention of an 0b10 base 28128 | -5/Proximity Caves | Destroyed 7 combat bots 28257 | -5/Proximity Caves | Learned location of 1 exit from Proximity Caves 28257 | -5/Proximity Caves | Learned Factory stockpile data 28368 | -5/Proximity Caves | Entered Factory 28368 | -5/Factory | Evolved 2 slots: Utility x1, Weapon x1 28369 | -5/Factory | Identified exit to Factory 28371 | -5/Factory | Loaded intel: 4 garrison access locations 28419 | -5/Factory | Identified exit to Upper Caves 28419 | -5/Factory | Identified exit to Extension 28436 | -5/Factory | Incoming investigation squad redirected 29033 | -5/Factory | Found Hvy. Reactive Plating 29038 | -5/Factory | Found Hvy. Reactive Plating 29043 | -5/Factory | Found Hvy. Reactive Plating 29120 | -5/Factory | Entered Upper Caves 29124 | -5/Upper Caves | Encountered a Warlord checkpoint 29919 | -5/Upper Caves | Learned Factory security intel 30107 | -5/Upper Caves | Attracted the attention of an 0b10 outpost 30167 | -5/Upper Caves | Destroyed 7 combat bots 30351 | -5/Upper Caves | Attracted the attention of an 0b10 checkpoint 30835 | -5/Upper Caves | Discovered new exit (range 5) 30922 | -5/Upper Caves | Entered another Upper Caves area 31109 | -5/Upper Caves | Attracted the attention of an 0b10 checkpoint 31256 | -5/Upper Caves | Learned 8 Factory zone layouts 31320 | -5/Upper Caves | Discovered exit to Factory (range 6) 31803 | -5/Upper Caves | Learned 4 Factory zone layouts 32149 | -5/Upper Caves | Discovered new exit (range 16) 32197 | -5/Upper Caves | Entered Warlord 32281 | -5/Warlord | System corruption cleaned by Quarantine Array 32401 | -5/Warlord | Learned Testing stockpile data 32403 | -5/Warlord | Learned 4 Research zone layouts 32403 | -5/Warlord | Learned 4 Access zone layouts 32403 | -5/Warlord | Learned 4 Command zone layouts 32405 | -5/Warlord | Learned Quarantine security intel 32405 | -5/Warlord | Learned Factory garrison access intel 32494 | -5/Warlord | Warlord's base attacked by MAIN.C 32529 | -5/Warlord | Found Prototype Energy Gun 32529 | -5/Warlord | Identified Vortex Rifle 32536 | -5/Warlord | Found Prototype Energy Cannon 32536 | -5/Warlord | Identified Vortex Cannon 32540 | -5/Warlord | Found Vortex Cannon 32789 | -5/Warlord | Met Warlord 32810 | -5/Warlord | Opened Warlord's prototype stash 32821 | -5/Warlord | Found Prototype Reactor 32841 | -5/Warlord | Found Prototype Device 32841 | -5/Warlord | Identified Thermal Barrier 32843 | -5/Warlord | Identified Vortex Chain Reactor 32844 | -5/Warlord | Warlord forces counterattacked 32856 | -5/Warlord | Found Prototype Hackware 33169 | -5/Warlord | Warlord base infiltrated, sounded retreat 33170 | -5/Warlord | Enhanced Grunt warped into view 33170 | -5/Warlord | Enhanced Grunt warped into view 33170 | -5/Warlord | Enhanced Grunt warped into view 33170 | -5/Warlord | Enhanced Demolisher warped into view 33170 | -5/Warlord | Enhanced Demolisher warped into view 33170 | -5/Warlord | Enhanced Demolisher warped into view 33210 | -5/Warlord | Lost 4 allies 33429 | -5/Warlord | Lost 5 allies 33450 | -5/Warlord | Discovered new exit (range 14) 33481 | -5/Warlord | Entered Proximity Caves 33861 | -4/Proximity Caves | Learned location of Quarantine (-2) 34091 | -4/Proximity Caves | Attracted the attention of an 0b10 base 34218 | -4/Proximity Caves | Learned 6 Lower Caves zone layouts 34218 | -4/Proximity Caves | Learned Research emergency access door positions 34218 | -4/Proximity Caves | Learned Research terminal intel 34218 | -4/Proximity Caves | Learned Armory garrison access intel 34237 | -4/Proximity Caves | Found DCF Scrap (11 items) 34842 | -4/Proximity Caves | Learned Research terminal intel 34999 | -4/Proximity Caves | Attracted the attention of an 0b10 checkpoint 35132 | -4/Proximity Caves | Spotted B-86 Titan 35185 | -4/Proximity Caves | Entered Factory 35185 | -4/Factory | Evolved 2 slots: Utility x2 35186 | -4/Factory | Identified exit to Research 35187 | -4/Factory | Identified exit to Upper Caves 35189 | -4/Factory | Loaded intel: 4 garrison access locations 35396 | -4/Factory | Found Prototype Device 35396 | -4/Factory | Identified Exp. ECM Suite 35400 | -4/Factory | Found Exp. ECM Suite 35583 | -4/Factory | Build established: Hacker-Golem 36074 | -4/Factory | Repaired Imp. Shield Generator 36231 | -4/Factory | Learned Quarantine trap positions 36289 | -4/Factory | Identified Exp. Hacking Suite 36292 | -4/Factory | Learned 4 Testing zone layouts 36345 | -4/Factory | Learned Research emergency access door positions 36383 | -4/Factory | Spotted B-86 Titan 36447 | -4/Factory | Learned Armory garrison access intel 36526 | -4/Factory | Learned 8 Research zone layouts 36940 | -4/Factory | Fabricated Prc. Energy Filter (x1) 37259 | -4/Factory | Cargo convoy interrupted 37333 | -4/Factory | Identified System Mapper 37376 | -4/Factory | Lost 15 parts (1p11u3w) 37382 | -4/Factory | Entered Upper Caves 38193 | -4/Upper Caves | Spotted B-86 Titan 38408 | -4/Upper Caves | Attracted the attention of an 0b10 checkpoint 38775 | -4/Upper Caves | Discovered new exit (range 11) 38793 | -4/Upper Caves | Entered another Upper Caves area 38801 | -4/Upper Caves | Spotted B-86 Titan 38819 | -4/Upper Caves | Destroyed B-86 Titan 39268 | -4/Upper Caves | Attracted the attention of an 0b10 checkpoint 39372 | -4/Upper Caves | Learned 12 Research zone layouts 39709 | -4/Upper Caves | Build established: Golem 40150 | -4/Upper Caves | Learned Research trap positions 40218 | -4/Upper Caves | Discovered new exit (range 3) 40224 | -4/Upper Caves | Entered Zhirov 40226 | -4/Zhirov | Discovered new exit (range 3) 40253 | -4/Zhirov | Met Zhirov 40280 | -4/Zhirov | Learned location of Testing (-3) 40280 | -4/Zhirov | Learned location of Command (-1) 40295 | -4/Zhirov | Zhirov requested help retrieving the SGEMP Prototype 40318 | -4/Zhirov | Found Alien Artifact 40318 | -4/Zhirov | Identified Integrated Reactor 40318 | -4/Zhirov | Installed Integrated Reactor, increased core energy generation (+10) 40336 | -4/Zhirov | Found Alien Artifact 40640 | -4/Zhirov | Entered Proximity Caves 40642 | -3/Proximity Caves | Spotter reported a threat 40643 | -3/Proximity Caves | Spotter reported a threat 41009 | -3/Proximity Caves | Spotter reported a threat 41147 | -3/Proximity Caves | Discovered exit to Research (range 10) 41168 | -3/Proximity Caves | Entered Research 41168 | -3/Research | Evolved 2 slots: Utility x2 41169 | -3/Research | Identified exit to Research 41170 | -3/Research | Loaded intel: 80 trap records 41172 | -3/Research | Loaded intel: 20 terminal locations 41318 | -3/Research | Discovered new exit (range 12) 41352 | -3/Research | Entered Testing 41417 | -3/Testing | Found Prototype Launcher 41417 | -3/Testing | Identified Com. Tesla Bomb Launcher 41515 | -3/Testing | Found Prototype Processor 41515 | -3/Testing | Identified Exp. Terrain Scan Processor 41793 | -3/Testing | Found Spectral Analyzer 41820 | -3/Testing | Spotted Striker 41820 | -3/Testing | Spotted Striker 41837 | -3/Testing | Spotted PH-5YMECUWE19 41902 | -3/Testing | Found Prototype Energy Cannon 41902 | -3/Testing | Identified Cld. Nova Cannon 41925 | -3/Testing | Build established: Hacker-Mutant 41935 | -3/Testing | Discovered exit to Research (range 23) 41942 | -3/Testing | Found Prototype Energy Cannon 41942 | -3/Testing | Identified Potential Cannon 41944 | -3/Testing | Found Prototype Energy Cannon 41944 | -3/Testing | Identified Imp. Potential Cannon 41980 | -3/Testing | Entered Research 41980 | -2/Research | Warlord forces began assault on 0b10 41980 | -2/Research | Evolved 2 slots: Propulsion x2 41982 | -2/Research | Loaded intel: 24 terminal locations 42048 | -2/Research | Found Exp. Hacking Suite 42090 | -2/Research | Research machine network offline 42111 | -2/Research | Met up with Warlord 42229 | -2/Research | Lost 3 allies 42303 | -2/Research | Found Prototype Device 42304 | -2/Research | Found Prototype Processor 42305 | -2/Research | Identified Exp. Signal Interpreter 42308 | -2/Research | Identified Exp. Transmission Jammer 42312 | -2/Research | Found Exp. Transmission Jammer 42313 | -2/Research | Found Exp. Signal Interpreter 42333 | -2/Research | Discovered new exit (range 12) 42372 | -2/Research | Lost 3 allies 42381 | -2/Research | Borebot progress halted 42466 | -2/Research | Discovered new exit (range 10) 42472 | -2/Research | Identified exit to Access 42601 | -2/Research | Spotted Striker 42631 | -2/Research | Found Spectral Analyzer 42718 | -2/Research | Discovered exit to Access (range 11) 42774 | -2/Research | Borebot progress halted 42791 | -2/Research | Spotted B-90 Cyclops 42795 | -2/Research | Borebot progress halted 42828 | -2/Research | Spotted B-90 Cyclops 42833 | -2/Research | Discovered new exit (range 16) 42837 | -2/Research | Found Prototype Launcher 42837 | -2/Research | Identified Tesla Bomb Launcher 42845 | -2/Research | Lost 3 parts (2u1w) 42856 | -2/Research | Entered Quarantine 42857 | -2/Quarantine | Loaded intel: 13 trap records 42864 | -2/Quarantine | Found Alien Reactor 42864 | -2/Quarantine | Identified Matter Drive 42995 | -2/Quarantine | Found Alien Artifact 43020 | -2/Quarantine | Found Alien Impact Weapon 43020 | -2/Quarantine | Identified Core Stripper 43033 | -2/Quarantine | Lost 4 allies 43166 | -2/Quarantine | Found Alien Slashing Weapon 43166 | -2/Quarantine | Identified Sigix Broadsword 43269 | -2/Quarantine | Found Alien Artifact 43269 | -2/Quarantine | Identified Phase Armor 43275 | -2/Quarantine | Discovered exit to Access (range 4) 43434 | -2/Quarantine | Found Alien Artifact 43434 | -2/Quarantine | Identified Core Reset Matrix 43434 | -2/Quarantine | Identified Transdimensional Reconstructor 43434 | -2/Quarantine | Identified Hpw. Transdimensional Reconstructor 43434 | -2/Quarantine | Used Core Reset Matrix 43438 | -2/Quarantine | Detected hypermatrix surge 43438 | -2/Quarantine | Sensed 12 artifacts in vicinity 43449 | -2/Quarantine | Found Subatomic Replicator 43454 | -2/Quarantine | Met incapacitated Sigix Warrior 43454 | -2/Quarantine | Lockdown squad dispatched 43463 | -2/Quarantine | Found Sigix Containment Pod 43500 | -2/Quarantine | Spotted Lightning 43500 | -2/Quarantine | Spotted Lightning 43525 | -2/Quarantine | Discovered exit to Access (range 15) 43547 | -2/Quarantine | Spotted Fortress 43576 | -2/Quarantine | Discovered new exit (range 6) 43606 | -2/Quarantine | Search patrols dispatched 43617 | -2/Quarantine | Entered Section 7 43618 | -2/Section 7 | Sensed 21 artifacts in vicinity 43638 | -2/Section 7 | Spotted S7 Guard 43650 | -2/Section 7 | Found Core Membrane 43650 | -2/Section 7 | Installed Core Membrane, gained immunity to corruption 43686 | -2/Section 7 | Found Integrated Reactor 43686 | -2/Section 7 | Installed Integrated Reactor, increased core energy generation (+10) 43730 | -2/Section 7 | Found Integrated Dissipator 43730 | -2/Section 7 | Installed Integrated Dissipator, increased core heat dissipation (+20) 43757 | -2/Section 7 | Found Integrated Dissipator 43757 | -2/Section 7 | Installed Integrated Dissipator, increased core heat dissipation (+20) 43859 | -2/Section 7 | Spotted B-90 Cyclops 43869 | -2/Section 7 | Spotted S7 Guard 43875 | -2/Section 7 | Found Integrated Thermoelectric Network 43875 | -2/Section 7 | Installed Integrated Thermoelectric Network, gained heat-energy exchange potential 43893 | -2/Section 7 | Spotted Alpha 7 43894 | -2/Section 7 | Spotted Alpha 7 43920 | -2/Section 7 | Spotted S7 Guard 43929 | -2/Section 7 | Found Core Physics Calibrator 43936 | -2/Section 7 | Entered Access 43936 | -1/Access | Evolved 2 slots (calibrated): Propulsion x2, Utility x1, -Weapon x1 43964 | -1/Access | Lost 4 parts (3u1w) 43996 | -1/Access | Warped through subspace 44186 | -1/Access | Search patrols dispatched 44578 | -1/Access | Lost 3 parts (1n2u) 44601 | -1/Access | Build established: Wizard-Mutant 44640 | -1/Access | Identified exit to Command 44648 | -1/Access | Identified exit to Surface 44721 | -1/Access | Warped through subspace 44730 | -1/Access | Used Subatomic Replicator to replicate Sigix Containment Pod 44750 | -1/Access | Lost 13 parts (9n3u1w) 44779 | -1/Access | Incoming investigation squad redirected 44794 | -1/Access | Fabricated Cld. Q-thruster? 44798 | -1/Access | Core integrity fell below 50% 44831 | -1/Access | Emitted hypermatrix ping 44836 | -1/Access | Assembled emerged from beneath the floor 44871 | -1/Access | Lost 4 allies 44876 | -1/Access | Core integrity fell below 20% 44882 | -1/Access | Destroyed by G-73 Enforcer with Phase Gun Last Messages --------------- redirecting investigation. 44794_ >> FABRICATOR: Completed Cld. Q-thruster? 44794_ Asb. Nanovents destroyed. 44797_ Imp. Hacking Suite destroyed. 44808_ W-44 Eye sends out distress signal. 44818_ Connecting with Terminal... >>Layout(Zone) Retrieving Zone 9B layout... Downloaded map data. 44829_ GOLEM Unit destroyed. 44831_ Emitted hypermatrix ping. 44832_ Exp. Hacking Suite destroyed. 44833_ G-73 Enforcer suffers critical hit (Burn). 44836_ Slug penetrates U-05 Engineer. 44842_ K-01 Serf cleans the Sealed Freight Elevator. 44880_ Exp. Coolant Injector destroyed. 44881_ Door malfunctions. 44882_ Imp. Hacking Suite destroyed. Map ----- +----------------------------------------------------+ | ?????????????????????????????????????????????????? | | ???????????###########???????????????????????????? | | ######?????# #???????????????????????????? | | # #?????# #???????????????????????????? | | # #?????# #???????????????????????????? | | # ####### #######?????????????????????? | | # * + ####+##+##+# #?????????????????????? | | # #### #??# # #?????????????????????? | | # #?## ##?# # #?????????????????????? | | ######## ### # #?????????????????????? | | ????# + #?????????????????????? | | ????# ## ### #### #?????????????????????? | | ????#??## ##?# #??# #?????????????????????? | | ????????# #??# #??# #?????????????????????? | | ????????# #??# #??# #?????????????????????? | | ???##+###+#### #??# #?????????????????????? | | ???# ## #??# #?????????????????????? | | ???# ## #??# #?????????????????????? | | ???# " ## #####+####?????????????????????? | | ???# """ # #??????????????????????? | | ???# """ /p #??????????????????????? | | ???# " # #??????????????????????? | | ???# # ! #??????????????????????? | | ???# # #??????????????????????? | | ???# # #??????????????????????? | | ???########## @#??????????????????????? | | ????????????# gg / ?????????????????????? | | ????????????# g g ##### !???????????????????? | | ????????????# g #???? #?????????????????? | | ???########## g #?????####?????????????????? | | ??+ #??????????????????????????? | | ???########## #??????????????????????????? | | ????????????#### #??????????????????????????? | | ???????????????# ######???? #???????????????? | | ???????????????# = #?? *#???????????????? | | ???????????????#! # ################# | | ???????????????# + ## | | ???????????????# ![[ # ## | | ???????????????# [[[ #?? ## | | ???????????????# [[ #???? ## | | ???????????????# #?????## | | ???????????????# #?????## | | ???????????????# ######## """"T"""" | | ???????????????# + """""""""" | | ???????????????# ####################### | | ???????????????# #?????????############# | | ???????????????# """"" #######???# | | ???????????????# """"" #???#* | | ???????????????# """"" #???# "" | | ???????????????# """"" ##### " """ | +----------------------------------------------------+ Best States ------------- Heat Dissipation 137 Coolant Potential 120 Energy Generation 65 Energy Capacity 3300 Matter Stores 450 Matter Capacity 450 Sight Range 24 Robot Scan Range 15 Terrain Scan Range 16 Terrain Scan Density 2010 Jamming Range 22 Cloak Strength 3 Additional Mass Support 20 Armor Coverage 1300 Resistance: KI 40 Resistance: TH 50 Resistance: EX 15 Resistance: EM 15 Resistance: I 15 Resistance: S 15 Resistance: P 15 Core Shielding 20 Propulsion Shielding 66 Utility Shielding 66 Weapon Shielding 100 Weapon Cycling 25 Phase Shifting 8 Evasion (%) 81 Targeting Accuracy 8 Melee Accuracy 8 Target Analysis 10 Core Analysis 8 Armor Integrity Analysis 50 Recoil Reduction 2 Energy Filtering 50 Offensive Hacking 42 Defensive Hacking 38 Authchip Count 1 Item Schematics ----------------- None Robot Schematics ------------------ None Fabricated ------------ Imp. Hacking Suite | x1 | -6/Factory | Authchip Prc. Energy Filter | x1 | -4/Factory Cld. Q-thruster | x1 | -1/Access | Preloaded Alien Tech Used ----------------- Core Expander Dimensional Node Initializer Integrated Reactor Matter Drive Core Stripper Sigix Broadsword Phase Armor Core Reset Matrix Core Membrane Integrated Dissipator Integrated Thermoelectric Network Core Physics Calibrator Transdimensional Reconstructor High-powered Transdimensional Reconstructor Subatomic Replicator Achievements -------------- Full Golem Challenges ------------ None Game ------ Seed GunScrapCasing Manual? 0 Play Time 04:35:29 Cumulative 415.2 hours Start 2024.10.26 @ 14:45:43 End 2024.10.26 @ 19:41:23 Sessions 1 Manual Loads 0 Difficulty Rogue Special Mode None Game No. 287 Rogue 282 Adventurer 5 Explorer 0 Win Type - Total 9 Types 4/0/5/0/0/0/0/0/0 Lore% 75 Gallery% 88 Achievement% 74 Wizard Run 0 Options --------- Layout 2 ASCII 0 Keyboard 0 Movement Mouse Keybinds 0 Fullscreen 2 Font 24/Smallcaps Map View 50x44 Zoom Use 0% Tactical HUD 1 Map Filters NONE Filters NONE Steam 1 RUN: fab48ec9-f9ff-4335-82fe-04a5c870443a